Workbook

Sheet СКЛАД
A3: № | B3: Производитель | C3: Категория | D3: Ссылка
A4: 1 | B4: Gira | C4: Электроустановка
A5: 2 | B5: Legrand | C5: Щиты и комплектующие
A6: 3 | B6: Legrand | C6: Sagane (электроустановка)
A7: 4 | B7: Legrand | C7: Valena (электроустановка)
A8: 5 | B8: Legrand | C8: Suno (электроустановка)
A9: 6 | B9: Legrand | C9: Cariva (электроустановка)
A10: 7 | B10: Legrand | C10: Galea Life (электроустановка)
A11: 8 | B11: Legrand | C11: DX (автоматика)
A12: 9 | B12: Legrand | C12: LR (автоматика)
A13: 10 | B13: ABB | C13: Электроустановка
A14: 12 | B14: Simon | C14: Электроустановка
A15: 13 | B15: Bticino | C15: Электроустановка
A16: 14 | B16: Merten | C16: M-Smart (электроустановка)
A17: 15 | B17: SLV | C17: Блоки питания
A18: 16 | B18: Donolux | C18: Светильник
A19: Если Вам известен артикул нужного товара, воспользуйтесь поиском.

Sheet ПОИСК
A3: Арт. | B3: Наименование | C3: Остаток | D3: Кол-во | E3: Цена, руб. | F3: Сумма, руб.
A4: 774301 | B4: =IFERROR(VLOOKUP(A4,Общий!A:D,2,0), "Товар отсутствует на складе") -> Выключатель одноклавишный - Valena - 10 A - 250 В~ - слоновая кость | C4: =IFERROR(VLOOKUP(A4,Общий!A:D,3,0), "") -> 1 | E4: =IFERROR(VLOOKUP(A4,Общий!A:D,4,0), "") -> 217.81 | F4: =IFERROR(D4*E4,"") -> 0
A5: 774420 | B5: =IFERROR(VLOOKUP(A5,Общий!A:D,2,0), "Товар отсутствует на складе") -> Товар отсутствует на складе | C5: =IFERROR(VLOOKUP(A5,Общий!A:D,3,0), "") ->  | E5: =IFERROR(VLOOKUP(A5,Общий!A:D,4,0), "") ->  | F5: =IFERROR(D5*E5,"") -> 
B6: =IFERROR(VLOOKUP(A6,Общий!A:D,2,0),"Товар отсутствует на складе") -> Товар отсутствует на складе | C6: =IFERROR(VLOOKUP(A6,Общий!A:D,3,0), "") ->  | E6: =IFERROR(VLOOKUP(A6,Общий!A:D,4,0), "") -> 
B7: =IFERROR(VLOOKUP(A7,Общий!A:D,2,0),"Товар отсутствует на складе") -> Товар отсутствует на складе | C7: =IFERROR(VLOOKUP(A7,Общий!A:D,3,0), "") ->  | E7: =IFERROR(VLOOKUP(A7,Общий!A:D,4,0), "") -> 
B8: =IFERROR(VLOOKUP(A8,Общий!A:D,2,0),"Товар отсутствует на складе") -> Товар отсутствует на складе | C8: =IFERROR(VLOOKUP(A8,Общий!A:D,3,0), "") ->  | E8: =IFERROR(VLOOKUP(A8,Общий!A:D,4,0), "") -> 
B9: =IFERROR(VLOOKUP(A9,Общий!A:D,2,0),"Товар отсутствует на складе") -> Товар отсутствует на складе | C9: =IFERROR(VLOOKUP(A9,Общий!A:D,3,0), "") ->  | E9: =IFERROR(VLOOKUP(A9,Общий!A:D,4,0), "") -> 
B10: =IFERROR(VLOOKUP(A10,Общий!A:D,2,0),"Товар отсутствует на складе") -> Товар отсутствует на складе | C10: =IFERROR(VLOOKUP(A10,Общий!A:D,3,0), "") ->  | E10: =IFERROR(VLOOKUP(A10,Общий!A:D,4,0), "") -> 
B11: =IFERROR(VLOOKUP(A11,Общий!A:D,2,0),"Товар отсутствует на складе") -> Товар отсутствует на складе | C11: =IFERROR(VLOOKUP(A11,Общий!A:D,3,0), "") ->  | E11: =IFERROR(VLOOKUP(A11,Общий!A:D,4,0), "") -> 
B12: =IFERROR(VLOOKUP(A12,Общий!A:D,2,0),"Товар отсутствует на складе") -> Товар отсутствует на складе | C12: =IFERROR(VLOOKUP(A12,Общий!A:D,3,0), "") ->  | E12: =IFERROR(VLOOKUP(A12,Общий!A:D,4,0), "") -> 
B13: =IFERROR(VLOOKUP(A13,Общий!A:D,2,0),"Товар отсутствует на складе") -> Товар отсутствует на складе | C13: =IFERROR(VLOOKUP(A13,Общий!A:D,3,0), "") ->  | E13: =IFERROR(VLOOKUP(A13,Общий!A:D,4,0), "") -> 
B14: =IFERROR(VLOOKUP(A14,Общий!A:D,2,0),"Товар отсутствует на складе") -> Товар отсутствует на складе | C14: =IFERROR(VLOOKUP(A14,Общий!A:D,3,0), "") ->  | E14: =IFERROR(VLOOKUP(A14,Общий!A:D,4,0), "") -> 
B15: =IFERROR(VLOOKUP(A15,Общий!A:D,2,0),"Товар отсутствует на складе") -> Товар отсутствует на складе | C15: =IFERROR(VLOOKUP(A15,Общий!A:D,3,0), "") ->  | E15: =IFERROR(VLOOKUP(A15,Общий!A:D,4,0), "") -> 
B16: =IFERROR(VLOOKUP(A16,Общий!A:D,2,0),"Товар отсутствует на складе") -> Товар отсутствует на складе | C16: =IFERROR(VLOOKUP(A16,Общий!A:D,3,0), "") ->  | E16: =IFERROR(VLOOKUP(A16,Общий!A:D,4,0), "") -> 
B17: =IFERROR(VLOOKUP(A17,Общий!A:D,2,0),"Товар отсутствует на складе") -> Товар отсутствует на складе | C17: =IFERROR(VLOOKUP(A17,Общий!A:D,3,0), "") ->  | E17: =IFERROR(VLOOKUP(A17,Общий!A:D,4,0), "") ->  | F17: =IFERROR(D17*E17,"") -> 
B18: =IFERROR(VLOOKUP(A18,Общий!A:D,2,0),"Товар отсутствует на складе") -> Товар отсутствует на складе | C18: =IFERROR(VLOOKUP(A18,Общий!A:D,3,0), "") ->  | E18: =IFERROR(VLOOKUP(A18,Общий!A:D,4,0), "") -> 
B19: =IFERROR(VLOOKUP(A19,Общий!A:D,2,0),"Товар отсутствует на складе") -> Товар отсутствует на складе | C19: =IFERROR(VLOOKUP(A19,Общий!A:D,3,0), "") ->  | E19: =IFERROR(VLOOKUP(A19,Общий!A:D,4,0), "") -> 
B20: =IFERROR(VLOOKUP(A20,Общий!A:D,2,0),"Товар отсутствует на складе") -> Товар отсутствует на складе | C20: =IFERROR(VLOOKUP(A20,Общий!A:D,3,0), "") ->  | E20: =IFERROR(VLOOKUP(A20,Общий!A:D,4,0), "") -> 
B21: =IFERROR(VLOOKUP(A21,Общий!A:D,2,0),"Товар отсутствует на складе") -> Товар отсутствует на складе | C21: =IFERROR(VLOOKUP(A21,Общий!A:D,3,0), "") ->  | E21: =IFERROR(VLOOKUP(A21,Общий!A:D,4,0), "") -> 
B22: =IFERROR(VLOOKUP(A22,Общий!A:D,2,0),"Товар отсутствует на складе") -> Товар отсутствует на складе | C22: =IFERROR(VLOOKUP(A22,Общий!A:D,3,0), "") ->  | E22: =IFERROR(VLOOKUP(A22,Общий!A:D,4,0), "") -> 
B23: =IFERROR(VLOOKUP(A23,Общий!A:D,2,0),"Товар отсутствует на складе") -> Товар отсутствует на складе | C23: =IFERROR(VLOOKUP(A23,Общий!A:D,3,0), "") ->  | E23: =IFERROR(VLOOKUP(A23,Общий!A:D,4,0), "") -> 
B24: =IFERROR(VLOOKUP(A24,Общий!A:D,2,0),"Товар отсутствует на складе") -> Товар отсутствует на складе | C24: =IFERROR(VLOOKUP(A24,Общий!A:D,3,0), "") ->  | E24: =IFERROR(VLOOKUP(A24,Общий!A:D,4,0), "") -> 
B25: =IFERROR(VLOOKUP(A25,Общий!A:D,2,0),"Товар отсутствует на складе") -> Товар отсутствует на складе | C25: =IFERROR(VLOOKUP(A25,Общий!A:D,3,0), "") ->  | E25: =IFERROR(VLOOKUP(A25,Общий!A:D,4,0), "") -> 
B26: =IFERROR(VLOOKUP(A26,Общий!A:D,2,0),"Товар отсутствует на складе") -> Товар отсутствует на складе | C26: =IFERROR(VLOOKUP(A26,Общий!A:D,3,0), "") ->  | E26: =IFERROR(VLOOKUP(A26,Общий!A:D,4,0), "") -> 
B27: =IFERROR(VLOOKUP(A27,Общий!A:D,2,0),"Товар отсутствует на складе") -> Товар отсутствует на складе | C27: =IFERROR(VLOOKUP(A27,Общий!A:D,3,0), "") ->  | E27: =IFERROR(VLOOKUP(A27,Общий!A:D,4,0), "") -> 
B28: =IFERROR(VLOOKUP(A28,Общий!A:D,2,0),"Товар отсутствует на складе") -> Товар отсутствует на складе | C28: =IFERROR(VLOOKUP(A28,Общий!A:D,3,0), "") ->  | E28: =IFERROR(VLOOKUP(A28,Общий!A:D,4,0), "") -> 
B29: =IFERROR(VLOOKUP(A29,Общий!A:D,2,0),"Товар отсутствует на складе") -> Товар отсутствует на складе | C29: =IFERROR(VLOOKUP(A29,Общий!A:D,3,0), "") ->  | E29: =IFERROR(VLOOKUP(A29,Общий!A:D,4,0), "") -> 
B30: =IFERROR(VLOOKUP(A30,Общий!A:D,2,0),"Товар отсутствует на складе") -> Товар отсутствует на складе | C30: =IFERROR(VLOOKUP(A30,Общий!A:D,3,0), "") ->  | E30: =IFERROR(VLOOKUP(A30,Общий!A:D,4,0), "") -> 
B31: =IFERROR(VLOOKUP(A31,Общий!A:D,2,0),"Товар отсутствует на складе") -> Товар отсутствует на складе | C31: =IFERROR(VLOOKUP(A31,Общий!A:D,3,0), "") ->  | E31: =IFERROR(VLOOKUP(A31,Общий!A:D,4,0), "") -> 
B32: =IFERROR(VLOOKUP(A32,Общий!A:D,2,0),"Товар отсутствует на складе") -> Товар отсутствует на складе | C32: =IFERROR(VLOOKUP(A32,Общий!A:D,3,0), "") ->  | E32: =IFERROR(VLOOKUP(A32,Общий!A:D,4,0), "") -> 
B33: =IFERROR(VLOOKUP(A33,Общий!A:D,2,0),"Товар отсутствует на складе") -> Товар отсутствует на складе | C33: =IFERROR(VLOOKUP(A33,Общий!A:D,3,0), "") ->  | E33: =IFERROR(VLOOKUP(A33,Общий!A:D,4,0), "") -> 
B34: =IFERROR(VLOOKUP(A34,Общий!A:D,2,0),"Товар отсутствует на складе") -> Товар отсутствует на складе | C34: =IFERROR(VLOOKUP(A34,Общий!A:D,3,0), "") ->  | E34: =IFERROR(VLOOKUP(A34,Общий!A:D,4,0), "") -> 
B35: =IFERROR(VLOOKUP(A35,Общий!A:D,2,0),"Товар отсутствует на складе") -> Товар отсутствует на складе | C35: =IFERROR(VLOOKUP(A35,Общий!A:D,3,0), "") ->  | E35: =IFERROR(VLOOKUP(A35,Общий!A:D,4,0), "") -> 
B36: =IFERROR(VLOOKUP(A36,Общий!A:D,2,0),"Товар отсутствует на складе") -> Товар отсутствует на складе | C36: =IFERROR(VLOOKUP(A36,Общий!A:D,3,0), "") ->  | E36: =IFERROR(VLOOKUP(A36,Общий!A:D,4,0), "") -> 
B37: =IFERROR(VLOOKUP(A37,Общий!A:D,2,0),"Товар отсутствует на складе") -> Товар отсутствует на складе | C37: =IFERROR(VLOOKUP(A37,Общий!A:D,3,0), "") ->  | E37: =IFERROR(VLOOKUP(A37,Общий!A:D,4,0), "") -> 
B38: =IFERROR(VLOOKUP(A38,Общий!A:D,2,0),"Товар отсутствует на складе") -> Товар отсутствует на складе | C38: =IFERROR(VLOOKUP(A38,Общий!A:D,3,0), "") ->  | E38: =IFERROR(VLOOKUP(A38,Общий!A:D,4,0), "") -> 
B39: =IFERROR(VLOOKUP(A39,Общий!A:D,2,0),"Товар отсутствует на складе") -> Товар отсутствует на складе | C39: =IFERROR(VLOOKUP(A39,Общий!A:D,3,0), "") ->  | E39: =IFERROR(VLOOKUP(A39,Общий!A:D,4,0), "") -> 
B40: =IFERROR(VLOOKUP(A40,Общий!A:D,2,0),"Товар отсутствует на складе") -> Товар отсутствует на складе | C40: =IFERROR(VLOOKUP(A40,Общий!A:D,3,0), "") ->  | E40: =IFERROR(VLOOKUP(A40,Общий!A:D,4,0), "") -> 
B41: =IFERROR(VLOOKUP(A41,Общий!A:D,2,0),"Товар отсутствует на складе") -> Товар отсутствует на складе | C41: =IFERROR(VLOOKUP(A41,Общий!A:D,3,0), "") ->  | E41: =IFERROR(VLOOKUP(A41,Общий!A:D,4,0), "") -> 
B42: =IFERROR(VLOOKUP(A42,Общий!A:D,2,0),"Товар отсутствует на складе") -> Товар отсутствует на складе | C42: =IFERROR(VLOOKUP(A42,Общий!A:D,3,0), "") ->  | E42: =IFERROR(VLOOKUP(A42,Общий!A:D,4,0), "") -> 
B43: =IFERROR(VLOOKUP(A43,Общий!A:D,2,0),"Товар отсутствует на складе") -> Товар отсутствует на складе | C43: =IFERROR(VLOOKUP(A43,Общий!A:D,3,0), "") ->  | E43: =IFERROR(VLOOKUP(A43,Общий!A:D,4,0), "") -> 
B44: =IFERROR(VLOOKUP(A44,Общий!A:D,2,0),"Товар отсутствует на складе") -> Товар отсутствует на складе | C44: =IFERROR(VLOOKUP(A44,Общий!A:D,3,0), "") ->  | E44: =IFERROR(VLOOKUP(A44,Общий!A:D,4,0), "") -> 
B45: =IFERROR(VLOOKUP(A45,Общий!A:D,2,0),"Товар отсутствует на складе") -> Товар отсутствует на складе | C45: =IFERROR(VLOOKUP(A45,Общий!A:D,3,0), "") ->  | E45: =IFERROR(VLOOKUP(A45,Общий!A:D,4,0), "") -> 
B46: =IFERROR(VLOOKUP(A46,Общий!A:D,2,0),"Товар отсутствует на складе") -> Товар отсутствует на складе | C46: =IFERROR(VLOOKUP(A46,Общий!A:D,3,0), "") ->  | E46: =IFERROR(VLOOKUP(A46,Общий!A:D,4,0), "") -> 
B47: =IFERROR(VLOOKUP(A47,Общий!A:D,2,0),"Товар отсутствует на складе") -> Товар отсутствует на складе | C47: =IFERROR(VLOOKUP(A47,Общий!A:D,3,0), "") ->  | E47: =IFERROR(VLOOKUP(A47,Общий!A:D,4,0), "") -> 
B48: =IFERROR(VLOOKUP(A48,Общий!A:D,2,0),"Товар отсутствует на складе") -> Товар отсутствует на складе | C48: =IFERROR(VLOOKUP(A48,Общий!A:D,3,0), "") ->  | E48: =IFERROR(VLOOKUP(A48,Общий!A:D,4,0), "") -> 
B49: =IFERROR(VLOOKUP(A49,Общий!A:D,2,0),"Товар отсутствует на складе") -> Товар отсутствует на складе | C49: =IFERROR(VLOOKUP(A49,Общий!A:D,3,0), "") ->  | E49: =IFERROR(VLOOKUP(A49,Общий!A:D,4,0), "") -> 
B50: =IFERROR(VLOOKUP(A50,Общий!A:D,2,0),"Товар отсутствует на складе") -> Товар отсутствует на складе | C50: =IFERROR(VLOOKUP(A50,Общий!A:D,3,0), "") ->  | E50: =IFERROR(VLOOKUP(A50,Общий!A:D,4,0), "") -> 
B51: =IFERROR(VLOOKUP(A51,Общий!A:D,2,0),"Товар отсутствует на складе") -> Товар отсутствует на складе | C51: =IFERROR(VLOOKUP(A51,Общий!A:D,3,0), "") ->  | E51: =IFERROR(VLOOKUP(A51,Общий!A:D,4,0), "") -> 
B52: =IFERROR(VLOOKUP(A52,Общий!A:D,2,0),"Товар отсутствует на складе") -> Товар отсутствует на складе | C52: =IFERROR(VLOOKUP(A52,Общий!A:D,3,0), "") ->  | E52: =IFERROR(VLOOKUP(A52,Общий!A:D,4,0), "") -> 
B53: =IFERROR(VLOOKUP(A53,Общий!A:D,2,0),"Товар отсутствует на складе") -> Товар отсутствует на складе | C53: =IFERROR(VLOOKUP(A53,Общий!A:D,3,0), "") ->  | E53: =IFERROR(VLOOKUP(A53,Общий!A:D,4,0), "") -> 
B54: =IFERROR(VLOOKUP(A54,Общий!A:D,2,0),"Товар отсутствует на складе") -> Товар отсутствует на складе | C54: =IFERROR(VLOOKUP(A54,Общий!A:D,3,0), "") ->  | E54: =IFERROR(VLOOKUP(A54,Общий!A:D,4,0), "") -> 
B55: =IFERROR(VLOOKUP(A55,Общий!A:D,2,0),"Товар отсутствует на складе") -> Товар отсутствует на складе | C55: =IFERROR(VLOOKUP(A55,Общий!A:D,3,0), "") ->  | E55: =IFERROR(VLOOKUP(A55,Общий!A:D,4,0), "") -> 
B56: =IFERROR(VLOOKUP(A56,Общий!A:D,2,0),"Товар отсутствует на складе") -> Товар отсутствует на складе | C56: =IFERROR(VLOOKUP(A56,Общий!A:D,3,0), "") ->  | E56: =IFERROR(VLOOKUP(A56,Общий!A:D,4,0), "") -> 
B57: =IFERROR(VLOOKUP(A57,Общий!A:D,2,0),"Товар отсутствует на складе") -> Товар отсутствует на складе | C57: =IFERROR(VLOOKUP(A57,Общий!A:D,3,0), "") ->  | E57: =IFERROR(VLOOKUP(A57,Общий!A:D,4,0), "") -> 
B58: =IFERROR(VLOOKUP(A58,Общий!A:D,2,0),"Товар отсутствует на складе") -> Товар отсутствует на складе | C58: =IFERROR(VLOOKUP(A58,Общий!A:D,3,0), "") ->  | E58: =IFERROR(VLOOKUP(A58,Общий!A:D,4,0), "") -> 
B59: =IFERROR(VLOOKUP(A59,Общий!A:D,2,0),"Товар отсутствует на складе") -> Товар отсутствует на складе | C59: =IFERROR(VLOOKUP(A59,Общий!A:D,3,0), "") ->  | E59: =IFERROR(VLOOKUP(A59,Общий!A:D,4,0), "") -> 
B60: =IFERROR(VLOOKUP(A60,Общий!A:D,2,0),"Товар отсутствует на складе") -> Товар отсутствует на складе | C60: =IFERROR(VLOOKUP(A60,Общий!A:D,3,0), "") ->  | E60: =IFERROR(VLOOKUP(A60,Общий!A:D,4,0), "") -> 
B61: =IFERROR(VLOOKUP(A61,Общий!A:D,2,0),"Товар отсутствует на складе") -> Товар отсутствует на складе | C61: =IFERROR(VLOOKUP(A61,Общий!A:D,3,0), "") ->  | E61: =IFERROR(VLOOKUP(A61,Общий!A:D,4,0), "") -> 
B62: =IFERROR(VLOOKUP(A62,Общий!A:D,2,0),"Товар отсутствует на складе") -> Товар отсутствует на складе | C62: =IFERROR(VLOOKUP(A62,Общий!A:D,3,0), "") ->  | E62: =IFERROR(VLOOKUP(A62,Общий!A:D,4,0), "") -> 
B63: =IFERROR(VLOOKUP(A63,Общий!A:D,2,0),"Товар отсутствует на складе") -> Товар отсутствует на складе | C63: =IFERROR(VLOOKUP(A63,Общий!A:D,3,0), "") ->  | E63: =IFERROR(VLOOKUP(A63,Общий!A:D,4,0), "") -> 
B64: =IFERROR(VLOOKUP(A64,Общий!A:D,2,0),"Товар отсутствует на складе") -> Товар отсутствует на складе | C64: =IFERROR(VLOOKUP(A64,Общий!A:D,3,0), "") ->  | E64: =IFERROR(VLOOKUP(A64,Общий!A:D,4,0), "") -> 
B65: =IFERROR(VLOOKUP(A65,Общий!A:D,2,0),"Товар отсутствует на складе") -> Товар отсутствует на складе | C65: =IFERROR(VLOOKUP(A65,Общий!A:D,3,0), "") ->  | E65: =IFERROR(VLOOKUP(A65,Общий!A:D,4,0), "") -> 
B66: =IFERROR(VLOOKUP(A66,Общий!A:D,2,0),"Товар отсутствует на складе") -> Товар отсутствует на складе | C66: =IFERROR(VLOOKUP(A66,Общий!A:D,3,0), "") ->  | E66: =IFERROR(VLOOKUP(A66,Общий!A:D,4,0), "") -> 
B67: =IFERROR(VLOOKUP(A67,Общий!A:D,2,0),"Товар отсутствует на складе") -> Товар отсутствует на складе | C67: =IFERROR(VLOOKUP(A67,Общий!A:D,3,0), "") ->  | E67: =IFERROR(VLOOKUP(A67,Общий!A:D,4,0), "") -> 
B68: =IFERROR(VLOOKUP(A68,Общий!A:D,2,0),"Товар отсутствует на складе") -> Товар отсутствует на складе | C68: =IFERROR(VLOOKUP(A68,Общий!A:D,3,0), "") ->  | E68: =IFERROR(VLOOKUP(A68,Общий!A:D,4,0), "") -> 
B69: =IFERROR(VLOOKUP(A69,Общий!A:D,2,0),"Товар отсутствует на складе") -> Товар отсутствует на складе | C69: =IFERROR(VLOOKUP(A69,Общий!A:D,3,0), "") ->  | E69: =IFERROR(VLOOKUP(A69,Общий!A:D,4,0), "") -> 
B70: =IFERROR(VLOOKUP(A70,Общий!A:D,2,0),"Товар отсутствует на складе") -> Товар отсутствует на складе | C70: =IFERROR(VLOOKUP(A70,Общий!A:D,3,0), "") ->  | E70: =IFERROR(VLOOKUP(A70,Общий!A:D,4,0), "") -> 
B71: =IFERROR(VLOOKUP(A71,Общий!A:D,2,0),"Товар отсутствует на складе") -> Товар отсутствует на складе | C71: =IFERROR(VLOOKUP(A71,Общий!A:D,3,0), "") ->  | E71: =IFERROR(VLOOKUP(A71,Общий!A:D,4,0), "") -> 
B72: =IFERROR(VLOOKUP(A72,Общий!A:D,2,0),"Товар отсутствует на складе") -> Товар отсутствует на складе | C72: =IFERROR(VLOOKUP(A72,Общий!A:D,3,0), "") ->  | E72: =IFERROR(VLOOKUP(A72,Общий!A:D,4,0), "") -> 
B73: =IFERROR(VLOOKUP(A73,Общий!A:D,2,0),"Товар отсутствует на складе") -> Товар отсутствует на складе | C73: =IFERROR(VLOOKUP(A73,Общий!A:D,3,0), "") ->  | E73: =IFERROR(VLOOKUP(A73,Общий!A:D,4,0), "") -> 
B74: =IFERROR(VLOOKUP(A74,Общий!A:D,2,0),"Товар отсутствует на складе") -> Товар отсутствует на складе | C74: =IFERROR(VLOOKUP(A74,Общий!A:D,3,0), "") ->  | E74: =IFERROR(VLOOKUP(A74,Общий!A:D,4,0), "") -> 
B75: =IFERROR(VLOOKUP(A75,Общий!A:D,2,0),"Товар отсутствует на складе") -> Товар отсутствует на складе | C75: =IFERROR(VLOOKUP(A75,Общий!A:D,3,0), "") ->  | E75: =IFERROR(VLOOKUP(A75,Общий!A:D,4,0), "") -> 
B76: =IFERROR(VLOOKUP(A76,Общий!A:D,2,0),"Товар отсутствует на складе") -> Товар отсутствует на складе | C76: =IFERROR(VLOOKUP(A76,Общий!A:D,3,0), "") ->  | E76: =IFERROR(VLOOKUP(A76,Общий!A:D,4,0), "") -> 
B77: =IFERROR(VLOOKUP(A77,Общий!A:D,2,0),"Товар отсутствует на складе") -> Товар отсутствует на складе | C77: =IFERROR(VLOOKUP(A77,Общий!A:D,3,0), "") ->  | E77: =IFERROR(VLOOKUP(A77,Общий!A:D,4,0), "") -> 
B78: =IFERROR(VLOOKUP(A78,Общий!A:D,2,0),"Товар отсутствует на складе") -> Товар отсутствует на складе | C78: =IFERROR(VLOOKUP(A78,Общий!A:D,3,0), "") ->  | E78: =IFERROR(VLOOKUP(A78,Общий!A:D,4,0), "") -> 
B79: =IFERROR(VLOOKUP(A79,Общий!A:D,2,0),"Товар отсутствует на складе") -> Товар отсутствует на складе | C79: =IFERROR(VLOOKUP(A79,Общий!A:D,3,0), "") ->  | E79: =IFERROR(VLOOKUP(A79,Общий!A:D,4,0), "") -> 
B80: =IFERROR(VLOOKUP(A80,Общий!A:D,2,0),"Товар отсутствует на складе") -> Товар отсутствует на складе | C80: =IFERROR(VLOOKUP(A80,Общий!A:D,3,0), "") ->  | E80: =IFERROR(VLOOKUP(A80,Общий!A:D,4,0), "") -> 
B81: =IFERROR(VLOOKUP(A81,Общий!A:D,2,0),"Товар отсутствует на складе") -> Товар отсутствует на складе | C81: =IFERROR(VLOOKUP(A81,Общий!A:D,3,0), "") ->  | E81: =IFERROR(VLOOKUP(A81,Общий!A:D,4,0), "") ->  | F81: =IFERROR(D81*E81,"") -> 
B82: =IFERROR(VLOOKUP(A82,Общий!A:D,2,0),"Товар отсутствует на складе") -> Товар отсутствует на складе | C82: =IFERROR(VLOOKUP(A82,Общий!A:D,3,0), "") ->  | E82: =IFERROR(VLOOKUP(A82,Общий!A:D,4,0), "") -> 
B83: =IFERROR(VLOOKUP(A83,Общий!A:D,2,0),"Товар отсутствует на складе") -> Товар отсутствует на складе | C83: =IFERROR(VLOOKUP(A83,Общий!A:D,3,0), "") ->  | E83: =IFERROR(VLOOKUP(A83,Общий!A:D,4,0), "") -> 
B84: =IFERROR(VLOOKUP(A84,Общий!A:D,2,0),"Товар отсутствует на складе") -> Товар отсутствует на складе | C84: =IFERROR(VLOOKUP(A84,Общий!A:D,3,0), "") ->  | E84: =IFERROR(VLOOKUP(A84,Общий!A:D,4,0), "") -> 
B85: =IFERROR(VLOOKUP(A85,Общий!A:D,2,0),"Товар отсутствует на складе") -> Товар отсутствует на складе | C85: =IFERROR(VLOOKUP(A85,Общий!A:D,3,0), "") ->  | E85: =IFERROR(VLOOKUP(A85,Общий!A:D,4,0), "") -> 
B86: =IFERROR(VLOOKUP(A86,Общий!A:D,2,0),"Товар отсутствует на складе") -> Товар отсутствует на складе | C86: =IFERROR(VLOOKUP(A86,Общий!A:D,3,0), "") ->  | E86: =IFERROR(VLOOKUP(A86,Общий!A:D,4,0), "") -> 
B87: =IFERROR(VLOOKUP(A87,Общий!A:D,2,0),"Товар отсутствует на складе") -> Товар отсутствует на складе | C87: =IFERROR(VLOOKUP(A87,Общий!A:D,3,0), "") ->  | E87: =IFERROR(VLOOKUP(A87,Общий!A:D,4,0), "") -> 
B88: =IFERROR(VLOOKUP(A88,Общий!A:D,2,0),"Товар отсутствует на складе") -> Товар отсутствует на складе | C88: =IFERROR(VLOOKUP(A88,Общий!A:D,3,0), "") ->  | E88: =IFERROR(VLOOKUP(A88,Общий!A:D,4,0), "") -> 
B89: =IFERROR(VLOOKUP(A89,Общий!A:D,2,0),"Товар отсутствует на складе") -> Товар отсутствует на складе | C89: =IFERROR(VLOOKUP(A89,Общий!A:D,3,0), "") ->  | E89: =IFERROR(VLOOKUP(A89,Общий!A:D,4,0), "") -> 
B90: =IFERROR(VLOOKUP(A90,Общий!A:D,2,0),"Товар отсутствует на складе") -> Товар отсутствует на складе | C90: =IFERROR(VLOOKUP(A90,Общий!A:D,3,0), "") ->  | E90: =IFERROR(VLOOKUP(A90,Общий!A:D,4,0), "") -> 
B91: =IFERROR(VLOOKUP(A91,Общий!A:D,2,0),"Товар отсутствует на складе") -> Товар отсутствует на складе | C91: =IFERROR(VLOOKUP(A91,Общий!A:D,3,0), "") ->  | E91: =IFERROR(VLOOKUP(A91,Общий!A:D,4,0), "") -> 
B92: =IFERROR(VLOOKUP(A92,Общий!A:D,2,0),"Товар отсутствует на складе") -> Товар отсутствует на складе | C92: =IFERROR(VLOOKUP(A92,Общий!A:D,3,0), "") ->  | E92: =IFERROR(VLOOKUP(A92,Общий!A:D,4,0), "") -> 
B93: =IFERROR(VLOOKUP(A93,Общий!A:D,2,0),"Товар отсутствует на складе") -> Товар отсутствует на складе | C93: =IFERROR(VLOOKUP(A93,Общий!A:D,3,0), "") ->  | E93: =IFERROR(VLOOKUP(A93,Общий!A:D,4,0), "") -> 
B94: =IFERROR(VLOOKUP(A94,Общий!A:D,2,0),"Товар отсутствует на складе") -> Товар отсутствует на складе | C94: =IFERROR(VLOOKUP(A94,Общий!A:D,3,0), "") ->  | E94: =IFERROR(VLOOKUP(A94,Общий!A:D,4,0), "") -> 
B95: =IFERROR(VLOOKUP(A95,Общий!A:D,2,0),"Товар отсутствует на складе") -> Товар отсутствует на складе | C95: =IFERROR(VLOOKUP(A95,Общий!A:D,3,0), "") ->  | E95: =IFERROR(VLOOKUP(A95,Общий!A:D,4,0), "") -> 
B96: =IFERROR(VLOOKUP(A96,Общий!A:D,2,0),"Товар отсутствует на складе") -> Товар отсутствует на складе | C96: =IFERROR(VLOOKUP(A96,Общий!A:D,3,0), "") ->  | E96: =IFERROR(VLOOKUP(A96,Общий!A:D,4,0), "") -> 
B97: =IFERROR(VLOOKUP(A97,Общий!A:D,2,0),"Товар отсутствует на складе") -> Товар отсутствует на складе | C97: =IFERROR(VLOOKUP(A97,Общий!A:D,3,0), "") ->  | E97: =IFERROR(VLOOKUP(A97,Общий!A:D,4,0), "") -> 
B98: =IFERROR(VLOOKUP(A98,Общий!A:D,2,0),"Товар отсутствует на складе") -> Товар отсутствует на складе | C98: =IFERROR(VLOOKUP(A98,Общий!A:D,3,0), "") ->  | E98: =IFERROR(VLOOKUP(A98,Общий!A:D,4,0), "") -> 
B99: =IFERROR(VLOOKUP(A99,Общий!A:D,2,0),"Товар отсутствует на складе") -> Товар отсутствует на складе | C99: =IFERROR(VLOOKUP(A99,Общий!A:D,3,0), "") ->  | E99: =IFERROR(VLOOKUP(A99,Общий!A:D,4,0), "") -> 
B100: =IFERROR(VLOOKUP(A100,Общий!A:D,2,0),"Товар отсутствует на складе") -> Товар отсутствует на складе | C100: =IFERROR(VLOOKUP(A100,Общий!A:D,3,0), "") ->  | E100: =IFERROR(VLOOKUP(A100,Общий!A:D,4,0), "") -> 
B101: =IFERROR(VLOOKUP(A101,Общий!A:D,2,0),"Товар отсутствует на складе") -> Товар отсутствует на складе | C101: =IFERROR(VLOOKUP(A101,Общий!A:D,3,0), "") ->  | E101: =IFERROR(VLOOKUP(A101,Общий!A:D,4,0), "") -> 
B102: =IFERROR(VLOOKUP(A102,Общий!A:D,2,0),"Товар отсутствует на складе") -> Товар отсутствует на складе | C102: =IFERROR(VLOOKUP(A102,Общий!A:D,3,0), "") ->  | E102: =IFERROR(VLOOKUP(A102,Общий!A:D,4,0), "") -> 
B103: =IFERROR(VLOOKUP(A103,Общий!A:D,2,0),"Товар отсутствует на складе") -> Товар отсутствует на складе | C103: =IFERROR(VLOOKUP(A103,Общий!A:D,3,0), "") ->  | E103: =IFERROR(VLOOKUP(A103,Общий!A:D,4,0), "") -> 
B104: =IFERROR(VLOOKUP(A104,Общий!A:D,2,0),"Товар отсутствует на складе") -> Товар отсутствует на складе | C104: =IFERROR(VLOOKUP(A104,Общий!A:D,3,0), "") ->  | E104: =IFERROR(VLOOKUP(A104,Общий!A:D,4,0), "") -> 
B105: =IFERROR(VLOOKUP(A105,Общий!A:D,2,0),"Товар отсутствует на складе") -> Товар отсутствует на складе | C105: =IFERROR(VLOOKUP(A105,Общий!A:D,3,0), "") ->  | E105: =IFERROR(VLOOKUP(A105,Общий!A:D,4,0), "") -> 
B106: =IFERROR(VLOOKUP(A106,Общий!A:D,2,0),"Товар отсутствует на складе") -> Товар отсутствует на складе | C106: =IFERROR(VLOOKUP(A106,Общий!A:D,3,0), "") ->  | E106: =IFERROR(VLOOKUP(A106,Общий!A:D,4,0), "") -> 
B107: =IFERROR(VLOOKUP(A107,Общий!A:D,2,0),"Товар отсутствует на складе") -> Товар отсутствует на складе | C107: =IFERROR(VLOOKUP(A107,Общий!A:D,3,0), "") ->  | E107: =IFERROR(VLOOKUP(A107,Общий!A:D,4,0), "") -> 
B108: =IFERROR(VLOOKUP(A108,Общий!A:D,2,0),"Товар отсутствует на складе") -> Товар отсутствует на складе | C108: =IFERROR(VLOOKUP(A108,Общий!A:D,3,0), "") ->  | E108: =IFERROR(VLOOKUP(A108,Общий!A:D,4,0), "") -> 
B109: =IFERROR(VLOOKUP(A109,Общий!A:D,2,0),"Товар отсутствует на складе") -> Товар отсутствует на складе | C109: =IFERROR(VLOOKUP(A109,Общий!A:D,3,0), "") ->  | E109: =IFERROR(VLOOKUP(A109,Общий!A:D,4,0), "") -> 
B110: =IFERROR(VLOOKUP(A110,Общий!A:D,2,0),"Товар отсутствует на складе") -> Товар отсутствует на складе | C110: =IFERROR(VLOOKUP(A110,Общий!A:D,3,0), "") ->  | E110: =IFERROR(VLOOKUP(A110,Общий!A:D,4,0), "") -> 
B111: =IFERROR(VLOOKUP(A111,Общий!A:D,2,0),"Товар отсутствует на складе") -> Товар отсутствует на складе | C111: =IFERROR(VLOOKUP(A111,Общий!A:D,3,0), "") ->  | E111: =IFERROR(VLOOKUP(A111,Общий!A:D,4,0), "") -> 
B112: =IFERROR(VLOOKUP(A112,Общий!A:D,2,0),"Товар отсутствует на складе") -> Товар отсутствует на складе | C112: =IFERROR(VLOOKUP(A112,Общий!A:D,3,0), "") ->  | E112: =IFERROR(VLOOKUP(A112,Общий!A:D,4,0), "") -> 
B113: =IFERROR(VLOOKUP(A113,Общий!A:D,2,0),"Товар отсутствует на складе") -> Товар отсутствует на складе | C113: =IFERROR(VLOOKUP(A113,Общий!A:D,3,0), "") ->  | E113: =IFERROR(VLOOKUP(A113,Общий!A:D,4,0), "") -> 
B114: =IFERROR(VLOOKUP(A114,Общий!A:D,2,0),"Товар отсутствует на складе") -> Товар отсутствует на складе | C114: =IFERROR(VLOOKUP(A114,Общий!A:D,3,0), "") ->  | E114: =IFERROR(VLOOKUP(A114,Общий!A:D,4,0), "") -> 
B115: =IFERROR(VLOOKUP(A115,Общий!A:D,2,0),"Товар отсутствует на складе") -> Товар отсутствует на складе | C115: =IFERROR(VLOOKUP(A115,Общий!A:D,3,0), "") ->  | E115: =IFERROR(VLOOKUP(A115,Общий!A:D,4,0), "") -> 
B116: =IFERROR(VLOOKUP(A116,Общий!A:D,2,0),"Товар отсутствует на складе") -> Товар отсутствует на складе | C116: =IFERROR(VLOOKUP(A116,Общий!A:D,3,0), "") ->  | E116: =IFERROR(VLOOKUP(A116,Общий!A:D,4,0), "") -> 
B117: =IFERROR(VLOOKUP(A117,Общий!A:D,2,0),"Товар отсутствует на складе") -> Товар отсутствует на складе | C117: =IFERROR(VLOOKUP(A117,Общий!A:D,3,0), "") ->  | E117: =IFERROR(VLOOKUP(A117,Общий!A:D,4,0), "") -> 
B118: =IFERROR(VLOOKUP(A118,Общий!A:D,2,0),"Товар отсутствует на складе") -> Товар отсутствует на складе | C118: =IFERROR(VLOOKUP(A118,Общий!A:D,3,0), "") ->  | E118: =IFERROR(VLOOKUP(A118,Общий!A:D,4,0), "") -> 
B119: =IFERROR(VLOOKUP(A119,Общий!A:D,2,0),"Товар отсутствует на складе") -> Товар отсутствует на складе | C119: =IFERROR(VLOOKUP(A119,Общий!A:D,3,0), "") ->  | E119: =IFERROR(VLOOKUP(A119,Общий!A:D,4,0), "") -> 
B120: =IFERROR(VLOOKUP(A120,Общий!A:D,2,0),"Товар отсутствует на складе") -> Товар отсутствует на складе | C120: =IFERROR(VLOOKUP(A120,Общий!A:D,3,0), "") ->  | E120: =IFERROR(VLOOKUP(A120,Общий!A:D,4,0), "") -> 
B121: =IFERROR(VLOOKUP(A121,Общий!A:D,2,0),"Товар отсутствует на складе") -> Товар отсутствует на складе | C121: =IFERROR(VLOOKUP(A121,Общий!A:D,3,0), "") ->  | E121: =IFERROR(VLOOKUP(A121,Общий!A:D,4,0), "") -> 
B122: =IFERROR(VLOOKUP(A122,Общий!A:D,2,0),"Товар отсутствует на складе") -> Товар отсутствует на складе | C122: =IFERROR(VLOOKUP(A122,Общий!A:D,3,0), "") ->  | E122: =IFERROR(VLOOKUP(A122,Общий!A:D,4,0), "") -> 
B123: =IFERROR(VLOOKUP(A123,Общий!A:D,2,0),"Товар отсутствует на складе") -> Товар отсутствует на складе | C123: =IFERROR(VLOOKUP(A123,Общий!A:D,3,0), "") ->  | E123: =IFERROR(VLOOKUP(A123,Общий!A:D,4,0), "") -> 
B124: =IFERROR(VLOOKUP(A124,Общий!A:D,2,0),"Товар отсутствует на складе") -> Товар отсутствует на складе | C124: =IFERROR(VLOOKUP(A124,Общий!A:D,3,0), "") ->  | E124: =IFERROR(VLOOKUP(A124,Общий!A:D,4,0), "") -> 
B125: =IFERROR(VLOOKUP(A125,Общий!A:D,2,0),"Товар отсутствует на складе") -> Товар отсутствует на складе | C125: =IFERROR(VLOOKUP(A125,Общий!A:D,3,0), "") ->  | E125: =IFERROR(VLOOKUP(A125,Общий!A:D,4,0), "") -> 
B126: =IFERROR(VLOOKUP(A126,Общий!A:D,2,0),"Товар отсутствует на складе") -> Товар отсутствует на складе | C126: =IFERROR(VLOOKUP(A126,Общий!A:D,3,0), "") ->  | E126: =IFERROR(VLOOKUP(A126,Общий!A:D,4,0), "") -> 
B127: =IFERROR(VLOOKUP(A127,Общий!A:D,2,0),"Товар отсутствует на складе") -> Товар отсутствует на складе | C127: =IFERROR(VLOOKUP(A127,Общий!A:D,3,0), "") ->  | E127: =IFERROR(VLOOKUP(A127,Общий!A:D,4,0), "") -> 
B128: =IFERROR(VLOOKUP(A128,Общий!A:D,2,0),"Товар отсутствует на складе") -> Товар отсутствует на складе | C128: =IFERROR(VLOOKUP(A128,Общий!A:D,3,0), "") ->  | E128: =IFERROR(VLOOKUP(A128,Общий!A:D,4,0), "") -> 
B129: =IFERROR(VLOOKUP(A129,Общий!A:D,2,0),"Товар отсутствует на складе") -> Товар отсутствует на складе | C129: =IFERROR(VLOOKUP(A129,Общий!A:D,3,0), "") ->  | E129: =IFERROR(VLOOKUP(A129,Общий!A:D,4,0), "") -> 
B130: =IFERROR(VLOOKUP(A130,Общий!A:D,2,0),"Товар отсутствует на складе") -> Товар отсутствует на складе | C130: =IFERROR(VLOOKUP(A130,Общий!A:D,3,0), "") ->  | E130: =IFERROR(VLOOKUP(A130,Общий!A:D,4,0), "") -> 
B131: =IFERROR(VLOOKUP(A131,Общий!A:D,2,0),"Товар отсутствует на складе") -> Товар отсутствует на складе | C131: =IFERROR(VLOOKUP(A131,Общий!A:D,3,0), "") ->  | E131: =IFERROR(VLOOKUP(A131,Общий!A:D,4,0), "") -> 
B132: =IFERROR(VLOOKUP(A132,Общий!A:D,2,0),"Товар отсутствует на складе") -> Товар отсутствует на складе | C132: =IFERROR(VLOOKUP(A132,Общий!A:D,3,0), "") ->  | E132: =IFERROR(VLOOKUP(A132,Общий!A:D,4,0), "") -> 
B133: =IFERROR(VLOOKUP(A133,Общий!A:D,2,0),"Товар отсутствует на складе") -> Товар отсутствует на складе | C133: =IFERROR(VLOOKUP(A133,Общий!A:D,3,0), "") ->  | E133: =IFERROR(VLOOKUP(A133,Общий!A:D,4,0), "") -> 
B134: =IFERROR(VLOOKUP(A134,Общий!A:D,2,0),"Товар отсутствует на складе") -> Товар отсутствует на складе | C134: =IFERROR(VLOOKUP(A134,Общий!A:D,3,0), "") ->  | E134: =IFERROR(VLOOKUP(A134,Общий!A:D,4,0), "") -> 
B135: =IFERROR(VLOOKUP(A135,Общий!A:D,2,0),"Товар отсутствует на складе") -> Товар отсутствует на складе | C135: =IFERROR(VLOOKUP(A135,Общий!A:D,3,0), "") ->  | E135: =IFERROR(VLOOKUP(A135,Общий!A:D,4,0), "") -> 
B136: =IFERROR(VLOOKUP(A136,Общий!A:D,2,0),"Товар отсутствует на складе") -> Товар отсутствует на складе | C136: =IFERROR(VLOOKUP(A136,Общий!A:D,3,0), "") ->  | E136: =IFERROR(VLOOKUP(A136,Общий!A:D,4,0), "") -> 
B137: =IFERROR(VLOOKUP(A137,Общий!A:D,2,0),"Товар отсутствует на складе") -> Товар отсутствует на складе | C137: =IFERROR(VLOOKUP(A137,Общий!A:D,3,0), "") ->  | E137: =IFERROR(VLOOKUP(A137,Общий!A:D,4,0), "") -> 
B138: =IFERROR(VLOOKUP(A138,Общий!A:D,2,0),"Товар отсутствует на складе") -> Товар отсутствует на складе | C138: =IFERROR(VLOOKUP(A138,Общий!A:D,3,0), "") ->  | E138: =IFERROR(VLOOKUP(A138,Общий!A:D,4,0), "") -> 
B139: =IFERROR(VLOOKUP(A139,Общий!A:D,2,0),"Товар отсутствует на складе") -> Товар отсутствует на складе | C139: =IFERROR(VLOOKUP(A139,Общий!A:D,3,0), "") ->  | E139: =IFERROR(VLOOKUP(A139,Общий!A:D,4,0), "") -> 
B140: =IFERROR(VLOOKUP(A140,Общий!A:D,2,0),"Товар отсутствует на складе") -> Товар отсутствует на складе | C140: =IFERROR(VLOOKUP(A140,Общий!A:D,3,0), "") ->  | E140: =IFERROR(VLOOKUP(A140,Общий!A:D,4,0), "") -> 
B141: =IFERROR(VLOOKUP(A141,Общий!A:D,2,0),"Товар отсутствует на складе") -> Товар отсутствует на складе | C141: =IFERROR(VLOOKUP(A141,Общий!A:D,3,0), "") ->  | E141: =IFERROR(VLOOKUP(A141,Общий!A:D,4,0), "") -> 
B142: =IFERROR(VLOOKUP(A142,Общий!A:D,2,0),"Товар отсутствует на складе") -> Товар отсутствует на складе | C142: =IFERROR(VLOOKUP(A142,Общий!A:D,3,0), "") ->  | E142: =IFERROR(VLOOKUP(A142,Общий!A:D,4,0), "") -> 
B143: =IFERROR(VLOOKUP(A143,Общий!A:D,2,0),"Товар отсутствует на складе") -> Товар отсутствует на складе | C143: =IFERROR(VLOOKUP(A143,Общий!A:D,3,0), "") ->  | E143: =IFERROR(VLOOKUP(A143,Общий!A:D,4,0), "") -> 
B144: =IFERROR(VLOOKUP(A144,Общий!A:D,2,0),"Товар отсутствует на складе") -> Товар отсутствует на складе | C144: =IFERROR(VLOOKUP(A144,Общий!A:D,3,0), "") ->  | E144: =IFERROR(VLOOKUP(A144,Общий!A:D,4,0), "") -> 
B145: =IFERROR(VLOOKUP(A145,Общий!A:D,2,0),"Товар отсутствует на складе") -> Товар отсутствует на складе | C145: =IFERROR(VLOOKUP(A145,Общий!A:D,3,0), "") ->  | E145: =IFERROR(VLOOKUP(A145,Общий!A:D,4,0), "") ->  | F145: =IFERROR(D145*E145,"") -> 
B146: =IFERROR(VLOOKUP(A146,Общий!A:D,2,0),"Товар отсутствует на складе") -> Товар отсутствует на складе | C146: =IFERROR(VLOOKUP(A146,Общий!A:D,3,0), "") ->  | E146: =IFERROR(VLOOKUP(A146,Общий!A:D,4,0), "") -> 
B147: =IFERROR(VLOOKUP(A147,Общий!A:D,2,0),"Товар отсутствует на складе") -> Товар отсутствует на складе | C147: =IFERROR(VLOOKUP(A147,Общий!A:D,3,0), "") ->  | E147: =IFERROR(VLOOKUP(A147,Общий!A:D,4,0), "") -> 
B148: =IFERROR(VLOOKUP(A148,Общий!A:D,2,0),"Товар отсутствует на складе") -> Товар отсутствует на складе | C148: =IFERROR(VLOOKUP(A148,Общий!A:D,3,0), "") ->  | E148: =IFERROR(VLOOKUP(A148,Общий!A:D,4,0), "") -> 
B149: =IFERROR(VLOOKUP(A149,Общий!A:D,2,0),"Товар отсутствует на складе") -> Товар отсутствует на складе | C149: =IFERROR(VLOOKUP(A149,Общий!A:D,3,0), "") ->  | E149: =IFERROR(VLOOKUP(A149,Общий!A:D,4,0), "") -> 
B150: =IFERROR(VLOOKUP(A150,Общий!A:D,2,0),"Товар отсутствует на складе") -> Товар отсутствует на складе | C150: =IFERROR(VLOOKUP(A150,Общий!A:D,3,0), "") ->  | E150: =IFERROR(VLOOKUP(A150,Общий!A:D,4,0), "") -> 
B151: =IFERROR(VLOOKUP(A151,Общий!A:D,2,0),"Товар отсутствует на складе") -> Товар отсутствует на складе | C151: =IFERROR(VLOOKUP(A151,Общий!A:D,3,0), "") ->  | E151: =IFERROR(VLOOKUP(A151,Общий!A:D,4,0), "") -> 
B152: =IFERROR(VLOOKUP(A152,Общий!A:D,2,0),"Товар отсутствует на складе") -> Товар отсутствует на складе | C152: =IFERROR(VLOOKUP(A152,Общий!A:D,3,0), "") ->  | E152: =IFERROR(VLOOKUP(A152,Общий!A:D,4,0), "") -> 
B153: =IFERROR(VLOOKUP(A153,Общий!A:D,2,0),"Товар отсутствует на складе") -> Товар отсутствует на складе | C153: =IFERROR(VLOOKUP(A153,Общий!A:D,3,0), "") ->  | E153: =IFERROR(VLOOKUP(A153,Общий!A:D,4,0), "") -> 
B154: =IFERROR(VLOOKUP(A154,Общий!A:D,2,0),"Товар отсутствует на складе") -> Товар отсутствует на складе | C154: =IFERROR(VLOOKUP(A154,Общий!A:D,3,0), "") ->  | E154: =IFERROR(VLOOKUP(A154,Общий!A:D,4,0), "") -> 
B155: =IFERROR(VLOOKUP(A155,Общий!A:D,2,0),"Товар отсутствует на складе") -> Товар отсутствует на складе | C155: =IFERROR(VLOOKUP(A155,Общий!A:D,3,0), "") ->  | E155: =IFERROR(VLOOKUP(A155,Общий!A:D,4,0), "") -> 
B156: =IFERROR(VLOOKUP(A156,Общий!A:D,2,0),"Товар отсутствует на складе") -> Товар отсутствует на складе | C156: =IFERROR(VLOOKUP(A156,Общий!A:D,3,0), "") ->  | E156: =IFERROR(VLOOKUP(A156,Общий!A:D,4,0), "") -> 
B157: =IFERROR(VLOOKUP(A157,Общий!A:D,2,0),"Товар отсутствует на складе") -> Товар отсутствует на складе | C157: =IFERROR(VLOOKUP(A157,Общий!A:D,3,0), "") ->  | E157: =IFERROR(VLOOKUP(A157,Общий!A:D,4,0), "") -> 
B158: =IFERROR(VLOOKUP(A158,Общий!A:D,2,0),"Товар отсутствует на складе") -> Товар отсутствует на складе | C158: =IFERROR(VLOOKUP(A158,Общий!A:D,3,0), "") ->  | E158: =IFERROR(VLOOKUP(A158,Общий!A:D,4,0), "") -> 
B159: =IFERROR(VLOOKUP(A159,Общий!A:D,2,0),"Товар отсутствует на складе") -> Товар отсутствует на складе | C159: =IFERROR(VLOOKUP(A159,Общий!A:D,3,0), "") ->  | E159: =IFERROR(VLOOKUP(A159,Общий!A:D,4,0), "") -> 
B160: =IFERROR(VLOOKUP(A160,Общий!A:D,2,0),"Товар отсутствует на складе") -> Товар отсутствует на складе | C160: =IFERROR(VLOOKUP(A160,Общий!A:D,3,0), "") ->  | E160: =IFERROR(VLOOKUP(A160,Общий!A:D,4,0), "") -> 
B161: =IFERROR(VLOOKUP(A161,Общий!A:D,2,0),"Товар отсутствует на складе") -> Товар отсутствует на складе | C161: =IFERROR(VLOOKUP(A161,Общий!A:D,3,0), "") ->  | E161: =IFERROR(VLOOKUP(A161,Общий!A:D,4,0), "") -> 
B162: =IFERROR(VLOOKUP(A162,Общий!A:D,2,0),"Товар отсутствует на складе") -> Товар отсутствует на складе | C162: =IFERROR(VLOOKUP(A162,Общий!A:D,3,0), "") ->  | E162: =IFERROR(VLOOKUP(A162,Общий!A:D,4,0), "") -> 
B163: =IFERROR(VLOOKUP(A163,Общий!A:D,2,0),"Товар отсутствует на складе") -> Товар отсутствует на складе | C163: =IFERROR(VLOOKUP(A163,Общий!A:D,3,0), "") ->  | E163: =IFERROR(VLOOKUP(A163,Общий!A:D,4,0), "") -> 
B164: =IFERROR(VLOOKUP(A164,Общий!A:D,2,0),"Товар отсутствует на складе") -> Товар отсутствует на складе | C164: =IFERROR(VLOOKUP(A164,Общий!A:D,3,0), "") ->  | E164: =IFERROR(VLOOKUP(A164,Общий!A:D,4,0), "") -> 
B165: =IFERROR(VLOOKUP(A165,Общий!A:D,2,0),"Товар отсутствует на складе") -> Товар отсутствует на складе | C165: =IFERROR(VLOOKUP(A165,Общий!A:D,3,0), "") ->  | E165: =IFERROR(VLOOKUP(A165,Общий!A:D,4,0), "") -> 
B166: =IFERROR(VLOOKUP(A166,Общий!A:D,2,0),"Товар отсутствует на складе") -> Товар отсутствует на складе | C166: =IFERROR(VLOOKUP(A166,Общий!A:D,3,0), "") ->  | E166: =IFERROR(VLOOKUP(A166,Общий!A:D,4,0), "") -> 
B167: =IFERROR(VLOOKUP(A167,Общий!A:D,2,0),"Товар отсутствует на складе") -> Товар отсутствует на складе | C167: =IFERROR(VLOOKUP(A167,Общий!A:D,3,0), "") ->  | E167: =IFERROR(VLOOKUP(A167,Общий!A:D,4,0), "") -> 
B168: =IFERROR(VLOOKUP(A168,Общий!A:D,2,0),"Товар отсутствует на складе") -> Товар отсутствует на складе | C168: =IFERROR(VLOOKUP(A168,Общий!A:D,3,0), "") ->  | E168: =IFERROR(VLOOKUP(A168,Общий!A:D,4,0), "") -> 
B169: =IFERROR(VLOOKUP(A169,Общий!A:D,2,0),"Товар отсутствует на складе") -> Товар отсутствует на складе | C169: =IFERROR(VLOOKUP(A169,Общий!A:D,3,0), "") ->  | E169: =IFERROR(VLOOKUP(A169,Общий!A:D,4,0), "") -> 
B170: =IFERROR(VLOOKUP(A170,Общий!A:D,2,0),"Товар отсутствует на складе") -> Товар отсутствует на складе | C170: =IFERROR(VLOOKUP(A170,Общий!A:D,3,0), "") ->  | E170: =IFERROR(VLOOKUP(A170,Общий!A:D,4,0), "") -> 
B171: =IFERROR(VLOOKUP(A171,Общий!A:D,2,0),"Товар отсутствует на складе") -> Товар отсутствует на складе | C171: =IFERROR(VLOOKUP(A171,Общий!A:D,3,0), "") ->  | E171: =IFERROR(VLOOKUP(A171,Общий!A:D,4,0), "") -> 
B172: =IFERROR(VLOOKUP(A172,Общий!A:D,2,0),"Товар отсутствует на складе") -> Товар отсутствует на складе | C172: =IFERROR(VLOOKUP(A172,Общий!A:D,3,0), "") ->  | E172: =IFERROR(VLOOKUP(A172,Общий!A:D,4,0), "") -> 
B173: =IFERROR(VLOOKUP(A173,Общий!A:D,2,0),"Товар отсутствует на складе") -> Товар отсутствует на складе | C173: =IFERROR(VLOOKUP(A173,Общий!A:D,3,0), "") ->  | E173: =IFERROR(VLOOKUP(A173,Общий!A:D,4,0), "") -> 
B174: =IFERROR(VLOOKUP(A174,Общий!A:D,2,0),"Товар отсутствует на складе") -> Товар отсутствует на складе | C174: =IFERROR(VLOOKUP(A174,Общий!A:D,3,0), "") ->  | E174: =IFERROR(VLOOKUP(A174,Общий!A:D,4,0), "") -> 
B175: =IFERROR(VLOOKUP(A175,Общий!A:D,2,0),"Товар отсутствует на складе") -> Товар отсутствует на складе | C175: =IFERROR(VLOOKUP(A175,Общий!A:D,3,0), "") ->  | E175: =IFERROR(VLOOKUP(A175,Общий!A:D,4,0), "") -> 
B176: =IFERROR(VLOOKUP(A176,Общий!A:D,2,0),"Товар отсутствует на складе") -> Товар отсутствует на складе | C176: =IFERROR(VLOOKUP(A176,Общий!A:D,3,0), "") ->  | E176: =IFERROR(VLOOKUP(A176,Общий!A:D,4,0), "") -> 
B177: =IFERROR(VLOOKUP(A177,Общий!A:D,2,0),"Товар отсутствует на складе") -> Товар отсутствует на складе | C177: =IFERROR(VLOOKUP(A177,Общий!A:D,3,0), "") ->  | E177: =IFERROR(VLOOKUP(A177,Общий!A:D,4,0), "") -> 
B178: =IFERROR(VLOOKUP(A178,Общий!A:D,2,0),"Товар отсутствует на складе") -> Товар отсутствует на складе | C178: =IFERROR(VLOOKUP(A178,Общий!A:D,3,0), "") ->  | E178: =IFERROR(VLOOKUP(A178,Общий!A:D,4,0), "") -> 
B179: =IFERROR(VLOOKUP(A179,Общий!A:D,2,0),"Товар отсутствует на складе") -> Товар отсутствует на складе | C179: =IFERROR(VLOOKUP(A179,Общий!A:D,3,0), "") ->  | E179: =IFERROR(VLOOKUP(A179,Общий!A:D,4,0), "") -> 
B180: =IFERROR(VLOOKUP(A180,Общий!A:D,2,0),"Товар отсутствует на складе") -> Товар отсутствует на складе | C180: =IFERROR(VLOOKUP(A180,Общий!A:D,3,0), "") ->  | E180: =IFERROR(VLOOKUP(A180,Общий!A:D,4,0), "") -> 
B181: =IFERROR(VLOOKUP(A181,Общий!A:D,2,0),"Товар отсутствует на складе") -> Товар отсутствует на складе | C181: =IFERROR(VLOOKUP(A181,Общий!A:D,3,0), "") ->  | E181: =IFERROR(VLOOKUP(A181,Общий!A:D,4,0), "") -> 
B182: =IFERROR(VLOOKUP(A182,Общий!A:D,2,0),"Товар отсутствует на складе") -> Товар отсутствует на складе | C182: =IFERROR(VLOOKUP(A182,Общий!A:D,3,0), "") ->  | E182: =IFERROR(VLOOKUP(A182,Общий!A:D,4,0), "") -> 
B183: =IFERROR(VLOOKUP(A183,Общий!A:D,2,0),"Товар отсутствует на складе") -> Товар отсутствует на складе | C183: =IFERROR(VLOOKUP(A183,Общий!A:D,3,0), "") ->  | E183: =IFERROR(VLOOKUP(A183,Общий!A:D,4,0), "") -> 
B184: =IFERROR(VLOOKUP(A184,Общий!A:D,2,0),"Товар отсутствует на складе") -> Товар отсутствует на складе | C184: =IFERROR(VLOOKUP(A184,Общий!A:D,3,0), "") ->  | E184: =IFERROR(VLOOKUP(A184,Общий!A:D,4,0), "") -> 
B185: =IFERROR(VLOOKUP(A185,Общий!A:D,2,0),"Товар отсутствует на складе") -> Товар отсутствует на складе | C185: =IFERROR(VLOOKUP(A185,Общий!A:D,3,0), "") ->  | E185: =IFERROR(VLOOKUP(A185,Общий!A:D,4,0), "") -> 
B186: =IFERROR(VLOOKUP(A186,Общий!A:D,2,0),"Товар отсутствует на складе") -> Товар отсутствует на складе | C186: =IFERROR(VLOOKUP(A186,Общий!A:D,3,0), "") ->  | E186: =IFERROR(VLOOKUP(A186,Общий!A:D,4,0), "") -> 
B187: =IFERROR(VLOOKUP(A187,Общий!A:D,2,0),"Товар отсутствует на складе") -> Товар отсутствует на складе | C187: =IFERROR(VLOOKUP(A187,Общий!A:D,3,0), "") ->  | E187: =IFERROR(VLOOKUP(A187,Общий!A:D,4,0), "") -> 
B188: =IFERROR(VLOOKUP(A188,Общий!A:D,2,0),"Товар отсутствует на складе") -> Товар отсутствует на складе | C188: =IFERROR(VLOOKUP(A188,Общий!A:D,3,0), "") ->  | E188: =IFERROR(VLOOKUP(A188,Общий!A:D,4,0), "") -> 
B189: =IFERROR(VLOOKUP(A189,Общий!A:D,2,0),"Товар отсутствует на складе") -> Товар отсутствует на складе | C189: =IFERROR(VLOOKUP(A189,Общий!A:D,3,0), "") ->  | E189: =IFERROR(VLOOKUP(A189,Общий!A:D,4,0), "") -> 
B190: =IFERROR(VLOOKUP(A190,Общий!A:D,2,0),"Товар отсутствует на складе") -> Товар отсутствует на складе | C190: =IFERROR(VLOOKUP(A190,Общий!A:D,3,0), "") ->  | E190: =IFERROR(VLOOKUP(A190,Общий!A:D,4,0), "") -> 
B191: =IFERROR(VLOOKUP(A191,Общий!A:D,2,0),"Товар отсутствует на складе") -> Товар отсутствует на складе | C191: =IFERROR(VLOOKUP(A191,Общий!A:D,3,0), "") ->  | E191: =IFERROR(VLOOKUP(A191,Общий!A:D,4,0), "") -> 
B192: =IFERROR(VLOOKUP(A192,Общий!A:D,2,0),"Товар отсутствует на складе") -> Товар отсутствует на складе | C192: =IFERROR(VLOOKUP(A192,Общий!A:D,3,0), "") ->  | E192: =IFERROR(VLOOKUP(A192,Общий!A:D,4,0), "") -> 
B193: =IFERROR(VLOOKUP(A193,Общий!A:D,2,0),"Товар отсутствует на складе") -> Товар отсутствует на складе | C193: =IFERROR(VLOOKUP(A193,Общий!A:D,3,0), "") ->  | E193: =IFERROR(VLOOKUP(A193,Общий!A:D,4,0), "") -> 
B194: =IFERROR(VLOOKUP(A194,Общий!A:D,2,0),"Товар отсутствует на складе") -> Товар отсутствует на складе | C194: =IFERROR(VLOOKUP(A194,Общий!A:D,3,0), "") ->  | E194: =IFERROR(VLOOKUP(A194,Общий!A:D,4,0), "") -> 
B195: =IFERROR(VLOOKUP(A195,Общий!A:D,2,0),"Товар отсутствует на складе") -> Товар отсутствует на складе | C195: =IFERROR(VLOOKUP(A195,Общий!A:D,3,0), "") ->  | E195: =IFERROR(VLOOKUP(A195,Общий!A:D,4,0), "") -> 
B196: =IFERROR(VLOOKUP(A196,Общий!A:D,2,0),"Товар отсутствует на складе") -> Товар отсутствует на складе | C196: =IFERROR(VLOOKUP(A196,Общий!A:D,3,0), "") ->  | E196: =IFERROR(VLOOKUP(A196,Общий!A:D,4,0), "") -> 
B197: =IFERROR(VLOOKUP(A197,Общий!A:D,2,0),"Товар отсутствует на складе") -> Товар отсутствует на складе | C197: =IFERROR(VLOOKUP(A197,Общий!A:D,3,0), "") ->  | E197: =IFERROR(VLOOKUP(A197,Общий!A:D,4,0), "") -> 
B198: =IFERROR(VLOOKUP(A198,Общий!A:D,2,0),"Товар отсутствует на складе") -> Товар отсутствует на складе | C198: =IFERROR(VLOOKUP(A198,Общий!A:D,3,0), "") ->  | E198: =IFERROR(VLOOKUP(A198,Общий!A:D,4,0), "") -> 
B199: =IFERROR(VLOOKUP(A199,Общий!A:D,2,0),"Товар отсутствует на складе") -> Товар отсутствует на складе | C199: =IFERROR(VLOOKUP(A199,Общий!A:D,3,0), "") ->  | E199: =IFERROR(VLOOKUP(A199,Общий!A:D,4,0), "") -> 
B200: =IFERROR(VLOOKUP(A200,Общий!A:D,2,0),"Товар отсутствует на складе") -> Товар отсутствует на складе | C200: =IFERROR(VLOOKUP(A200,Общий!A:D,3,0), "") ->  | E200: =IFERROR(VLOOKUP(A200,Общий!A:D,4,0), "") -> 
B201: =IFERROR(VLOOKUP(A201,Общий!A:D,2,0),"Товар отсутствует на складе") -> Товар отсутствует на складе | C201: =IFERROR(VLOOKUP(A201,Общий!A:D,3,0), "") ->  | E201: =IFERROR(VLOOKUP(A201,Общий!A:D,4,0), "") -> 
B202: =IFERROR(VLOOKUP(A202,Общий!A:D,2,0),"Товар отсутствует на складе") -> Товар отсутствует на складе | C202: =IFERROR(VLOOKUP(A202,Общий!A:D,3,0), "") ->  | E202: =IFERROR(VLOOKUP(A202,Общий!A:D,4,0), "") -> 
... 155 more rows

Sheet Заказ
F1: Сумма заказа | H1: =SUM(H6:H106) -> 0
F3: Вы сэкономили | H3: =SUM(E6:E106)-H1 -> 79507.39
A5: Арт. | B5: Наименование | C5: Остаток | D5: Тариф, руб. | E5: Сумма, руб. | F5: Кол-во | G5: Спеццена, руб. | H5: Сумма покупки, руб.
A6: =IFERROR(IFERROR(INDEX(DX!A:A,MATCH(ROW(A1),DX!$I:$I,)),INDEX(LR!A:A,MATCH(ROW(A1),LR!$I:$I,))),"") -> 8995 | B6: =IFERROR(IFERROR(INDEX(DX!B:B,MATCH(ROW(B1),DX!$I:$I,)),INDEX(LR!B:B,MATCH(ROW(B1),LR!$I:$I,))),"") -> DX ВДТ 4п 30мA AC63 | C6: =IFERROR(IFERROR(INDEX(DX!C:C,MATCH(ROW(C1),DX!$I:$I,)),INDEX(LR!C:C,MATCH(ROW(C1),LR!$I:$I,))),"") -> 3 | D6: =IFERROR(IFERROR(INDEX(DX!D:D,MATCH(ROW(D1),DX!$I:$I,)),INDEX(LR!D:D,MATCH(ROW(D1),LR!$I:$I,))),"") -> 4219.42 | E6: =IFERROR(IFERROR(INDEX(DX!E:E,MATCH(ROW(E1),DX!$I:$I,)),INDEX(LR!E:E,MATCH(ROW(E1),LR!$I:$I,))),"") -> 16877.68 | F6: =IFERROR(IFERROR(INDEX(DX!F:F,MATCH(ROW(F1),DX!$I:$I,)),INDEX(LR!F:F,MATCH(ROW(F1),LR!$I:$I,))),"") -> 4 | G6: =IFERROR(IFERROR(INDEX(DX!G:G,MATCH(ROW(G1),DX!$I:$I,)),INDEX(LR!G:G,MATCH(ROW(G1),LR!$I:$I,))),"") -> 0 | H6: =IFERROR(IFERROR(INDEX(DX!H:H,MATCH(ROW(H1),DX!$I:$I,)),INDEX(LR!H:H,MATCH(ROW(H1),LR!$I:$I,))),"") -> 0
A7: =IFERROR(IFERROR(INDEX(DX!A:A,MATCH(ROW(A2),DX!$I:$I,)),INDEX(LR!A:A,MATCH(ROW(A2),LR!$I:$I,))),"") -> 7966 | B7: =IFERROR(IFERROR(INDEX(DX!B:B,MATCH(ROW(B2),DX!$I:$I,)),INDEX(LR!B:B,MATCH(ROW(B2),LR!$I:$I,))),"") -> DX АВДТ 4п 30мА С25 6000A 10кА | C7: =IFERROR(IFERROR(INDEX(DX!C:C,MATCH(ROW(C2),DX!$I:$I,)),INDEX(LR!C:C,MATCH(ROW(C2),LR!$I:$I,))),"") -> 1 | D7: =IFERROR(IFERROR(INDEX(DX!D:D,MATCH(ROW(D2),DX!$I:$I,)),INDEX(LR!D:D,MATCH(ROW(D2),LR!$I:$I,))),"") -> 3750.71 | E7: =IFERROR(IFERROR(INDEX(DX!E:E,MATCH(ROW(E2),DX!$I:$I,)),INDEX(LR!E:E,MATCH(ROW(E2),LR!$I:$I,))),"") -> 18753.55 | F7: =IFERROR(IFERROR(INDEX(DX!F:F,MATCH(ROW(F2),DX!$I:$I,)),INDEX(LR!F:F,MATCH(ROW(F2),LR!$I:$I,))),"") -> 5 | G7: =IFERROR(IFERROR(INDEX(DX!G:G,MATCH(ROW(G2),DX!$I:$I,)),INDEX(LR!G:G,MATCH(ROW(G2),LR!$I:$I,))),"") -> 0 | H7: =IFERROR(IFERROR(INDEX(DX!H:H,MATCH(ROW(H2),DX!$I:$I,)),INDEX(LR!H:H,MATCH(ROW(H2),LR!$I:$I,))),"") -> 0
A8: =IFERROR(IFERROR(INDEX(DX!A:A,MATCH(ROW(A3),DX!$I:$I,)),INDEX(LR!A:A,MATCH(ROW(A3),LR!$I:$I,))),"") -> 3431 | B8: =IFERROR(IFERROR(INDEX(DX!B:B,MATCH(ROW(B3),DX!$I:$I,)),INDEX(LR!B:B,MATCH(ROW(B3),LR!$I:$I,))),"") -> DX ВА 2п C10 6000A 6кА | C8: =IFERROR(IFERROR(INDEX(DX!C:C,MATCH(ROW(C3),DX!$I:$I,)),INDEX(LR!C:C,MATCH(ROW(C3),LR!$I:$I,))),"") -> 2 | D8: =IFERROR(IFERROR(INDEX(DX!D:D,MATCH(ROW(D3),DX!$I:$I,)),INDEX(LR!D:D,MATCH(ROW(D3),LR!$I:$I,))),"") -> 423.76 | E8: =IFERROR(IFERROR(INDEX(DX!E:E,MATCH(ROW(E3),DX!$I:$I,)),INDEX(LR!E:E,MATCH(ROW(E3),LR!$I:$I,))),"") -> 2966.32 | F8: =IFERROR(IFERROR(INDEX(DX!F:F,MATCH(ROW(F3),DX!$I:$I,)),INDEX(LR!F:F,MATCH(ROW(F3),LR!$I:$I,))),"") -> 7 | G8: =IFERROR(IFERROR(INDEX(DX!G:G,MATCH(ROW(G3),DX!$I:$I,)),INDEX(LR!G:G,MATCH(ROW(G3),LR!$I:$I,))),"") -> 0 | H8: =IFERROR(IFERROR(INDEX(DX!H:H,MATCH(ROW(H3),DX!$I:$I,)),INDEX(LR!H:H,MATCH(ROW(H3),LR!$I:$I,))),"") -> 0
A9: =IFERROR(IFERROR(INDEX(DX!A:A,MATCH(ROW(A4),DX!$I:$I,)),INDEX(LR!A:A,MATCH(ROW(A4),LR!$I:$I,))),"") -> 604832 | B9: =IFERROR(IFERROR(INDEX(DX!B:B,MATCH(ROW(B4),DX!$I:$I,)),INDEX(LR!B:B,MATCH(ROW(B4),LR!$I:$I,))),"") -> LR ВА 3п C06 6000A 6кА | C9: =IFERROR(IFERROR(INDEX(DX!C:C,MATCH(ROW(C4),DX!$I:$I,)),INDEX(LR!C:C,MATCH(ROW(C4),LR!$I:$I,))),"") -> 1 | D9: =IFERROR(IFERROR(INDEX(DX!D:D,MATCH(ROW(D4),DX!$I:$I,)),INDEX(LR!D:D,MATCH(ROW(D4),LR!$I:$I,))),"") -> 444.91 | E9: =IFERROR(IFERROR(INDEX(DX!E:E,MATCH(ROW(E4),DX!$I:$I,)),INDEX(LR!E:E,MATCH(ROW(E4),LR!$I:$I,))),"") -> 34702.98 | F9: =IFERROR(IFERROR(INDEX(DX!F:F,MATCH(ROW(F4),DX!$I:$I,)),INDEX(LR!F:F,MATCH(ROW(F4),LR!$I:$I,))),"") -> 78 | G9: =IFERROR(IFERROR(INDEX(DX!G:G,MATCH(ROW(G4),DX!$I:$I,)),INDEX(LR!G:G,MATCH(ROW(G4),LR!$I:$I,))),"") -> 0 | H9: =IFERROR(IFERROR(INDEX(DX!H:H,MATCH(ROW(H4),DX!$I:$I,)),INDEX(LR!H:H,MATCH(ROW(H4),LR!$I:$I,))),"") -> 0
A10: =IFERROR(IFERROR(INDEX(DX!A:A,MATCH(ROW(A5),DX!$I:$I,)),INDEX(LR!A:A,MATCH(ROW(A5),LR!$I:$I,))),"") -> 604823 | B10: =IFERROR(IFERROR(INDEX(DX!B:B,MATCH(ROW(B5),DX!$I:$I,)),INDEX(LR!B:B,MATCH(ROW(B5),LR!$I:$I,))),"") -> LR ВА 2п C32 6000A 6кА | C10: =IFERROR(IFERROR(INDEX(DX!C:C,MATCH(ROW(C5),DX!$I:$I,)),INDEX(LR!C:C,MATCH(ROW(C5),LR!$I:$I,))),"") -> 5 | D10: =IFERROR(IFERROR(INDEX(DX!D:D,MATCH(ROW(D5),DX!$I:$I,)),INDEX(LR!D:D,MATCH(ROW(D5),LR!$I:$I,))),"") -> 282.13 | E10: =IFERROR(IFERROR(INDEX(DX!E:E,MATCH(ROW(E5),DX!$I:$I,)),INDEX(LR!E:E,MATCH(ROW(E5),LR!$I:$I,))),"") -> 6206.86 | F10: =IFERROR(IFERROR(INDEX(DX!F:F,MATCH(ROW(F5),DX!$I:$I,)),INDEX(LR!F:F,MATCH(ROW(F5),LR!$I:$I,))),"") -> 22 | G10: =IFERROR(IFERROR(INDEX(DX!G:G,MATCH(ROW(G5),DX!$I:$I,)),INDEX(LR!G:G,MATCH(ROW(G5),LR!$I:$I,))),"") -> 0 | H10: =IFERROR(IFERROR(INDEX(DX!H:H,MATCH(ROW(H5),DX!$I:$I,)),INDEX(LR!H:H,MATCH(ROW(H5),LR!$I:$I,))),"") -> 0
A11: =IFERROR(IFERROR(INDEX(DX!A:A,MATCH(ROW(A6),DX!$I:$I,)),INDEX(LR!A:A,MATCH(ROW(A6),LR!$I:$I,))),"") ->  | B11: =IFERROR(IFERROR(INDEX(DX!B:B,MATCH(ROW(B6),DX!$I:$I,)),INDEX(LR!B:B,MATCH(ROW(B6),LR!$I:$I,))),"") ->  | C11: =IFERROR(IFERROR(INDEX(DX!C:C,MATCH(ROW(C6),DX!$I:$I,)),INDEX(LR!C:C,MATCH(ROW(C6),LR!$I:$I,))),"") ->  | D11: =IFERROR(IFERROR(INDEX(DX!D:D,MATCH(ROW(D6),DX!$I:$I,)),INDEX(LR!D:D,MATCH(ROW(D6),LR!$I:$I,))),"") ->  | E11: =IFERROR(IFERROR(INDEX(DX!E:E,MATCH(ROW(E6),DX!$I:$I,)),INDEX(LR!E:E,MATCH(ROW(E6),LR!$I:$I,))),"") ->  | F11: =IFERROR(IFERROR(INDEX(DX!F:F,MATCH(ROW(F6),DX!$I:$I,)),INDEX(LR!F:F,MATCH(ROW(F6),LR!$I:$I,))),"") ->  | G11: =IFERROR(IFERROR(INDEX(DX!G:G,MATCH(ROW(G6),DX!$I:$I,)),INDEX(LR!G:G,MATCH(ROW(G6),LR!$I:$I,))),"") ->  | H11: =IFERROR(IFERROR(INDEX(DX!H:H,MATCH(ROW(H6),DX!$I:$I,)),INDEX(LR!H:H,MATCH(ROW(H6),LR!$I:$I,))),"") -> 
A12: =IFERROR(IFERROR(INDEX(DX!A:A,MATCH(ROW(A7),DX!$I:$I,)),INDEX(LR!A:A,MATCH(ROW(A7),LR!$I:$I,))),"") ->  | B12: =IFERROR(IFERROR(INDEX(DX!B:B,MATCH(ROW(B7),DX!$I:$I,)),INDEX(LR!B:B,MATCH(ROW(B7),LR!$I:$I,))),"") ->  | C12: =IFERROR(IFERROR(INDEX(DX!C:C,MATCH(ROW(C7),DX!$I:$I,)),INDEX(LR!C:C,MATCH(ROW(C7),LR!$I:$I,))),"") ->  | D12: =IFERROR(IFERROR(INDEX(DX!D:D,MATCH(ROW(D7),DX!$I:$I,)),INDEX(LR!D:D,MATCH(ROW(D7),LR!$I:$I,))),"") ->  | E12: =IFERROR(IFERROR(INDEX(DX!E:E,MATCH(ROW(E7),DX!$I:$I,)),INDEX(LR!E:E,MATCH(ROW(E7),LR!$I:$I,))),"") ->  | F12: =IFERROR(IFERROR(INDEX(DX!F:F,MATCH(ROW(F7),DX!$I:$I,)),INDEX(LR!F:F,MATCH(ROW(F7),LR!$I:$I,))),"") ->  | G12: =IFERROR(IFERROR(INDEX(DX!G:G,MATCH(ROW(G7),DX!$I:$I,)),INDEX(LR!G:G,MATCH(ROW(G7),LR!$I:$I,))),"") ->  | H12: =IFERROR(IFERROR(INDEX(DX!H:H,MATCH(ROW(H7),DX!$I:$I,)),INDEX(LR!H:H,MATCH(ROW(H7),LR!$I:$I,))),"") -> 
A13: =IFERROR(IFERROR(INDEX(DX!A:A,MATCH(ROW(A8),DX!$I:$I,)),INDEX(LR!A:A,MATCH(ROW(A8),LR!$I:$I,))),"") ->  | B13: =IFERROR(IFERROR(INDEX(DX!B:B,MATCH(ROW(B8),DX!$I:$I,)),INDEX(LR!B:B,MATCH(ROW(B8),LR!$I:$I,))),"") ->  | C13: =IFERROR(IFERROR(INDEX(DX!C:C,MATCH(ROW(C8),DX!$I:$I,)),INDEX(LR!C:C,MATCH(ROW(C8),LR!$I:$I,))),"") ->  | D13: =IFERROR(IFERROR(INDEX(DX!D:D,MATCH(ROW(D8),DX!$I:$I,)),INDEX(LR!D:D,MATCH(ROW(D8),LR!$I:$I,))),"") ->  | E13: =IFERROR(IFERROR(INDEX(DX!E:E,MATCH(ROW(E8),DX!$I:$I,)),INDEX(LR!E:E,MATCH(ROW(E8),LR!$I:$I,))),"") ->  | F13: =IFERROR(IFERROR(INDEX(DX!F:F,MATCH(ROW(F8),DX!$I:$I,)),INDEX(LR!F:F,MATCH(ROW(F8),LR!$I:$I,))),"") ->  | G13: =IFERROR(IFERROR(INDEX(DX!G:G,MATCH(ROW(G8),DX!$I:$I,)),INDEX(LR!G:G,MATCH(ROW(G8),LR!$I:$I,))),"") ->  | H13: =IFERROR(IFERROR(INDEX(DX!H:H,MATCH(ROW(H8),DX!$I:$I,)),INDEX(LR!H:H,MATCH(ROW(H8),LR!$I:$I,))),"") -> 
A14: =IFERROR(IFERROR(INDEX(DX!A:A,MATCH(ROW(A9),DX!$I:$I,)),INDEX(LR!A:A,MATCH(ROW(A9),LR!$I:$I,))),"") ->  | B14: =IFERROR(IFERROR(INDEX(DX!B:B,MATCH(ROW(B9),DX!$I:$I,)),INDEX(LR!B:B,MATCH(ROW(B9),LR!$I:$I,))),"") ->  | C14: =IFERROR(IFERROR(INDEX(DX!C:C,MATCH(ROW(C9),DX!$I:$I,)),INDEX(LR!C:C,MATCH(ROW(C9),LR!$I:$I,))),"") ->  | D14: =IFERROR(IFERROR(INDEX(DX!D:D,MATCH(ROW(D9),DX!$I:$I,)),INDEX(LR!D:D,MATCH(ROW(D9),LR!$I:$I,))),"") ->  | E14: =IFERROR(IFERROR(INDEX(DX!E:E,MATCH(ROW(E9),DX!$I:$I,)),INDEX(LR!E:E,MATCH(ROW(E9),LR!$I:$I,))),"") ->  | F14: =IFERROR(IFERROR(INDEX(DX!F:F,MATCH(ROW(F9),DX!$I:$I,)),INDEX(LR!F:F,MATCH(ROW(F9),LR!$I:$I,))),"") ->  | G14: =IFERROR(IFERROR(INDEX(DX!G:G,MATCH(ROW(G9),DX!$I:$I,)),INDEX(LR!G:G,MATCH(ROW(G9),LR!$I:$I,))),"") ->  | H14: =IFERROR(IFERROR(INDEX(DX!H:H,MATCH(ROW(H9),DX!$I:$I,)),INDEX(LR!H:H,MATCH(ROW(H9),LR!$I:$I,))),"") -> 
A15: =IFERROR(IFERROR(INDEX(DX!A:A,MATCH(ROW(A10),DX!$I:$I,)),INDEX(LR!A:A,MATCH(ROW(A10),LR!$I:$I,))),"") ->  | B15: =IFERROR(IFERROR(INDEX(DX!B:B,MATCH(ROW(B10),DX!$I:$I,)),INDEX(LR!B:B,MATCH(ROW(B10),LR!$I:$I,))),"") ->  | C15: =IFERROR(IFERROR(INDEX(DX!C:C,MATCH(ROW(C10),DX!$I:$I,)),INDEX(LR!C:C,MATCH(ROW(C10),LR!$I:$I,))),"") ->  | D15: =IFERROR(IFERROR(INDEX(DX!D:D,MATCH(ROW(D10),DX!$I:$I,)),INDEX(LR!D:D,MATCH(ROW(D10),LR!$I:$I,))),"") ->  | E15: =IFERROR(IFERROR(INDEX(DX!E:E,MATCH(ROW(E10),DX!$I:$I,)),INDEX(LR!E:E,MATCH(ROW(E10),LR!$I:$I,))),"") ->  | F15: =IFERROR(IFERROR(INDEX(DX!F:F,MATCH(ROW(F10),DX!$I:$I,)),INDEX(LR!F:F,MATCH(ROW(F10),LR!$I:$I,))),"") ->  | G15: =IFERROR(IFERROR(INDEX(DX!G:G,MATCH(ROW(G10),DX!$I:$I,)),INDEX(LR!G:G,MATCH(ROW(G10),LR!$I:$I,))),"") ->  | H15: =IFERROR(IFERROR(INDEX(DX!H:H,MATCH(ROW(H10),DX!$I:$I,)),INDEX(LR!H:H,MATCH(ROW(H10),LR!$I:$I,))),"") -> 
A16: =IFERROR(IFERROR(INDEX(DX!A:A,MATCH(ROW(A11),DX!$I:$I,)),INDEX(LR!A:A,MATCH(ROW(A11),LR!$I:$I,))),"") ->  | B16: =IFERROR(IFERROR(INDEX(DX!B:B,MATCH(ROW(B11),DX!$I:$I,)),INDEX(LR!B:B,MATCH(ROW(B11),LR!$I:$I,))),"") ->  | C16: =IFERROR(IFERROR(INDEX(DX!C:C,MATCH(ROW(C11),DX!$I:$I,)),INDEX(LR!C:C,MATCH(ROW(C11),LR!$I:$I,))),"") ->  | D16: =IFERROR(IFERROR(INDEX(DX!D:D,MATCH(ROW(D11),DX!$I:$I,)),INDEX(LR!D:D,MATCH(ROW(D11),LR!$I:$I,))),"") ->  | E16: =IFERROR(IFERROR(INDEX(DX!E:E,MATCH(ROW(E11),DX!$I:$I,)),INDEX(LR!E:E,MATCH(ROW(E11),LR!$I:$I,))),"") ->  | F16: =IFERROR(IFERROR(INDEX(DX!F:F,MATCH(ROW(F11),DX!$I:$I,)),INDEX(LR!F:F,MATCH(ROW(F11),LR!$I:$I,))),"") ->  | G16: =IFERROR(IFERROR(INDEX(DX!G:G,MATCH(ROW(G11),DX!$I:$I,)),INDEX(LR!G:G,MATCH(ROW(G11),LR!$I:$I,))),"") ->  | H16: =IFERROR(IFERROR(INDEX(DX!H:H,MATCH(ROW(H11),DX!$I:$I,)),INDEX(LR!H:H,MATCH(ROW(H11),LR!$I:$I,))),"") -> 
A17: =IFERROR(IFERROR(INDEX(DX!A:A,MATCH(ROW(A12),DX!$I:$I,)),INDEX(LR!A:A,MATCH(ROW(A12),LR!$I:$I,))),"") ->  | B17: =IFERROR(IFERROR(INDEX(DX!B:B,MATCH(ROW(B12),DX!$I:$I,)),INDEX(LR!B:B,MATCH(ROW(B12),LR!$I:$I,))),"") ->  | C17: =IFERROR(IFERROR(INDEX(DX!C:C,MATCH(ROW(C12),DX!$I:$I,)),INDEX(LR!C:C,MATCH(ROW(C12),LR!$I:$I,))),"") ->  | D17: =IFERROR(IFERROR(INDEX(DX!D:D,MATCH(ROW(D12),DX!$I:$I,)),INDEX(LR!D:D,MATCH(ROW(D12),LR!$I:$I,))),"") ->  | E17: =IFERROR(IFERROR(INDEX(DX!E:E,MATCH(ROW(E12),DX!$I:$I,)),INDEX(LR!E:E,MATCH(ROW(E12),LR!$I:$I,))),"") ->  | F17: =IFERROR(IFERROR(INDEX(DX!F:F,MATCH(ROW(F12),DX!$I:$I,)),INDEX(LR!F:F,MATCH(ROW(F12),LR!$I:$I,))),"") ->  | G17: =IFERROR(IFERROR(INDEX(DX!G:G,MATCH(ROW(G12),DX!$I:$I,)),INDEX(LR!G:G,MATCH(ROW(G12),LR!$I:$I,))),"") ->  | H17: =IFERROR(IFERROR(INDEX(DX!H:H,MATCH(ROW(H12),DX!$I:$I,)),INDEX(LR!H:H,MATCH(ROW(H12),LR!$I:$I,))),"") -> 
A18: =IFERROR(IFERROR(INDEX(DX!A:A,MATCH(ROW(A13),DX!$I:$I,)),INDEX(LR!A:A,MATCH(ROW(A13),LR!$I:$I,))),"") ->  | B18: =IFERROR(IFERROR(INDEX(DX!B:B,MATCH(ROW(B13),DX!$I:$I,)),INDEX(LR!B:B,MATCH(ROW(B13),LR!$I:$I,))),"") ->  | C18: =IFERROR(IFERROR(INDEX(DX!C:C,MATCH(ROW(C13),DX!$I:$I,)),INDEX(LR!C:C,MATCH(ROW(C13),LR!$I:$I,))),"") ->  | D18: =IFERROR(IFERROR(INDEX(DX!D:D,MATCH(ROW(D13),DX!$I:$I,)),INDEX(LR!D:D,MATCH(ROW(D13),LR!$I:$I,))),"") ->  | E18: =IFERROR(IFERROR(INDEX(DX!E:E,MATCH(ROW(E13),DX!$I:$I,)),INDEX(LR!E:E,MATCH(ROW(E13),LR!$I:$I,))),"") ->  | F18: =IFERROR(IFERROR(INDEX(DX!F:F,MATCH(ROW(F13),DX!$I:$I,)),INDEX(LR!F:F,MATCH(ROW(F13),LR!$I:$I,))),"") ->  | G18: =IFERROR(IFERROR(INDEX(DX!G:G,MATCH(ROW(G13),DX!$I:$I,)),INDEX(LR!G:G,MATCH(ROW(G13),LR!$I:$I,))),"") ->  | H18: =IFERROR(IFERROR(INDEX(DX!H:H,MATCH(ROW(H13),DX!$I:$I,)),INDEX(LR!H:H,MATCH(ROW(H13),LR!$I:$I,))),"") -> 
A19: =IFERROR(IFERROR(INDEX(DX!A:A,MATCH(ROW(A14),DX!$I:$I,)),INDEX(LR!A:A,MATCH(ROW(A14),LR!$I:$I,))),"") ->  | B19: =IFERROR(IFERROR(INDEX(DX!B:B,MATCH(ROW(B14),DX!$I:$I,)),INDEX(LR!B:B,MATCH(ROW(B14),LR!$I:$I,))),"") ->  | C19: =IFERROR(IFERROR(INDEX(DX!C:C,MATCH(ROW(C14),DX!$I:$I,)),INDEX(LR!C:C,MATCH(ROW(C14),LR!$I:$I,))),"") ->  | D19: =IFERROR(IFERROR(INDEX(DX!D:D,MATCH(ROW(D14),DX!$I:$I,)),INDEX(LR!D:D,MATCH(ROW(D14),LR!$I:$I,))),"") ->  | E19: =IFERROR(IFERROR(INDEX(DX!E:E,MATCH(ROW(E14),DX!$I:$I,)),INDEX(LR!E:E,MATCH(ROW(E14),LR!$I:$I,))),"") ->  | F19: =IFERROR(IFERROR(INDEX(DX!F:F,MATCH(ROW(F14),DX!$I:$I,)),INDEX(LR!F:F,MATCH(ROW(F14),LR!$I:$I,))),"") ->  | G19: =IFERROR(IFERROR(INDEX(DX!G:G,MATCH(ROW(G14),DX!$I:$I,)),INDEX(LR!G:G,MATCH(ROW(G14),LR!$I:$I,))),"") ->  | H19: =IFERROR(IFERROR(INDEX(DX!H:H,MATCH(ROW(H14),DX!$I:$I,)),INDEX(LR!H:H,MATCH(ROW(H14),LR!$I:$I,))),"") -> 
A20: =IFERROR(IFERROR(INDEX(DX!A:A,MATCH(ROW(A15),DX!$I:$I,)),INDEX(LR!A:A,MATCH(ROW(A15),LR!$I:$I,))),"") ->  | B20: =IFERROR(IFERROR(INDEX(DX!B:B,MATCH(ROW(B15),DX!$I:$I,)),INDEX(LR!B:B,MATCH(ROW(B15),LR!$I:$I,))),"") ->  | C20: =IFERROR(IFERROR(INDEX(DX!C:C,MATCH(ROW(C15),DX!$I:$I,)),INDEX(LR!C:C,MATCH(ROW(C15),LR!$I:$I,))),"") ->  | D20: =IFERROR(IFERROR(INDEX(DX!D:D,MATCH(ROW(D15),DX!$I:$I,)),INDEX(LR!D:D,MATCH(ROW(D15),LR!$I:$I,))),"") ->  | E20: =IFERROR(IFERROR(INDEX(DX!E:E,MATCH(ROW(E15),DX!$I:$I,)),INDEX(LR!E:E,MATCH(ROW(E15),LR!$I:$I,))),"") ->  | F20: =IFERROR(IFERROR(INDEX(DX!F:F,MATCH(ROW(F15),DX!$I:$I,)),INDEX(LR!F:F,MATCH(ROW(F15),LR!$I:$I,))),"") ->  | G20: =IFERROR(IFERROR(INDEX(DX!G:G,MATCH(ROW(G15),DX!$I:$I,)),INDEX(LR!G:G,MATCH(ROW(G15),LR!$I:$I,))),"") ->  | H20: =IFERROR(IFERROR(INDEX(DX!H:H,MATCH(ROW(H15),DX!$I:$I,)),INDEX(LR!H:H,MATCH(ROW(H15),LR!$I:$I,))),"") -> 
A21: =IFERROR(IFERROR(INDEX(DX!A:A,MATCH(ROW(A16),DX!$I:$I,)),INDEX(LR!A:A,MATCH(ROW(A16),LR!$I:$I,))),"") ->  | B21: =IFERROR(IFERROR(INDEX(DX!B:B,MATCH(ROW(B16),DX!$I:$I,)),INDEX(LR!B:B,MATCH(ROW(B16),LR!$I:$I,))),"") ->  | C21: =IFERROR(IFERROR(INDEX(DX!C:C,MATCH(ROW(C16),DX!$I:$I,)),INDEX(LR!C:C,MATCH(ROW(C16),LR!$I:$I,))),"") ->  | D21: =IFERROR(IFERROR(INDEX(DX!D:D,MATCH(ROW(D16),DX!$I:$I,)),INDEX(LR!D:D,MATCH(ROW(D16),LR!$I:$I,))),"") ->  | E21: =IFERROR(IFERROR(INDEX(DX!E:E,MATCH(ROW(E16),DX!$I:$I,)),INDEX(LR!E:E,MATCH(ROW(E16),LR!$I:$I,))),"") ->  | F21: =IFERROR(IFERROR(INDEX(DX!F:F,MATCH(ROW(F16),DX!$I:$I,)),INDEX(LR!F:F,MATCH(ROW(F16),LR!$I:$I,))),"") ->  | G21: =IFERROR(IFERROR(INDEX(DX!G:G,MATCH(ROW(G16),DX!$I:$I,)),INDEX(LR!G:G,MATCH(ROW(G16),LR!$I:$I,))),"") ->  | H21: =IFERROR(IFERROR(INDEX(DX!H:H,MATCH(ROW(H16),DX!$I:$I,)),INDEX(LR!H:H,MATCH(ROW(H16),LR!$I:$I,))),"") -> 
A22: =IFERROR(IFERROR(INDEX(DX!A:A,MATCH(ROW(A17),DX!$I:$I,)),INDEX(LR!A:A,MATCH(ROW(A17),LR!$I:$I,))),"") ->  | B22: =IFERROR(IFERROR(INDEX(DX!B:B,MATCH(ROW(B17),DX!$I:$I,)),INDEX(LR!B:B,MATCH(ROW(B17),LR!$I:$I,))),"") ->  | C22: =IFERROR(IFERROR(INDEX(DX!C:C,MATCH(ROW(C17),DX!$I:$I,)),INDEX(LR!C:C,MATCH(ROW(C17),LR!$I:$I,))),"") ->  | D22: =IFERROR(IFERROR(INDEX(DX!D:D,MATCH(ROW(D17),DX!$I:$I,)),INDEX(LR!D:D,MATCH(ROW(D17),LR!$I:$I,))),"") ->  | E22: =IFERROR(IFERROR(INDEX(DX!E:E,MATCH(ROW(E17),DX!$I:$I,)),INDEX(LR!E:E,MATCH(ROW(E17),LR!$I:$I,))),"") ->  | F22: =IFERROR(IFERROR(INDEX(DX!F:F,MATCH(ROW(F17),DX!$I:$I,)),INDEX(LR!F:F,MATCH(ROW(F17),LR!$I:$I,))),"") ->  | G22: =IFERROR(IFERROR(INDEX(DX!G:G,MATCH(ROW(G17),DX!$I:$I,)),INDEX(LR!G:G,MATCH(ROW(G17),LR!$I:$I,))),"") ->  | H22: =IFERROR(IFERROR(INDEX(DX!H:H,MATCH(ROW(H17),DX!$I:$I,)),INDEX(LR!H:H,MATCH(ROW(H17),LR!$I:$I,))),"") -> 
A23: =IFERROR(IFERROR(INDEX(DX!A:A,MATCH(ROW(A18),DX!$I:$I,)),INDEX(LR!A:A,MATCH(ROW(A18),LR!$I:$I,))),"") ->  | B23: =IFERROR(IFERROR(INDEX(DX!B:B,MATCH(ROW(B18),DX!$I:$I,)),INDEX(LR!B:B,MATCH(ROW(B18),LR!$I:$I,))),"") ->  | C23: =IFERROR(IFERROR(INDEX(DX!C:C,MATCH(ROW(C18),DX!$I:$I,)),INDEX(LR!C:C,MATCH(ROW(C18),LR!$I:$I,))),"") ->  | D23: =IFERROR(IFERROR(INDEX(DX!D:D,MATCH(ROW(D18),DX!$I:$I,)),INDEX(LR!D:D,MATCH(ROW(D18),LR!$I:$I,))),"") ->  | E23: =IFERROR(IFERROR(INDEX(DX!E:E,MATCH(ROW(E18),DX!$I:$I,)),INDEX(LR!E:E,MATCH(ROW(E18),LR!$I:$I,))),"") ->  | F23: =IFERROR(IFERROR(INDEX(DX!F:F,MATCH(ROW(F18),DX!$I:$I,)),INDEX(LR!F:F,MATCH(ROW(F18),LR!$I:$I,))),"") ->  | G23: =IFERROR(IFERROR(INDEX(DX!G:G,MATCH(ROW(G18),DX!$I:$I,)),INDEX(LR!G:G,MATCH(ROW(G18),LR!$I:$I,))),"") ->  | H23: =IFERROR(IFERROR(INDEX(DX!H:H,MATCH(ROW(H18),DX!$I:$I,)),INDEX(LR!H:H,MATCH(ROW(H18),LR!$I:$I,))),"") -> 
A24: =IFERROR(IFERROR(INDEX(DX!A:A,MATCH(ROW(A19),DX!$I:$I,)),INDEX(LR!A:A,MATCH(ROW(A19),LR!$I:$I,))),"") ->  | B24: =IFERROR(IFERROR(INDEX(DX!B:B,MATCH(ROW(B19),DX!$I:$I,)),INDEX(LR!B:B,MATCH(ROW(B19),LR!$I:$I,))),"") ->  | C24: =IFERROR(IFERROR(INDEX(DX!C:C,MATCH(ROW(C19),DX!$I:$I,)),INDEX(LR!C:C,MATCH(ROW(C19),LR!$I:$I,))),"") ->  | D24: =IFERROR(IFERROR(INDEX(DX!D:D,MATCH(ROW(D19),DX!$I:$I,)),INDEX(LR!D:D,MATCH(ROW(D19),LR!$I:$I,))),"") ->  | E24: =IFERROR(IFERROR(INDEX(DX!E:E,MATCH(ROW(E19),DX!$I:$I,)),INDEX(LR!E:E,MATCH(ROW(E19),LR!$I:$I,))),"") ->  | F24: =IFERROR(IFERROR(INDEX(DX!F:F,MATCH(ROW(F19),DX!$I:$I,)),INDEX(LR!F:F,MATCH(ROW(F19),LR!$I:$I,))),"") ->  | G24: =IFERROR(IFERROR(INDEX(DX!G:G,MATCH(ROW(G19),DX!$I:$I,)),INDEX(LR!G:G,MATCH(ROW(G19),LR!$I:$I,))),"") ->  | H24: =IFERROR(IFERROR(INDEX(DX!H:H,MATCH(ROW(H19),DX!$I:$I,)),INDEX(LR!H:H,MATCH(ROW(H19),LR!$I:$I,))),"") -> 
A25: =IFERROR(IFERROR(INDEX(DX!A:A,MATCH(ROW(A20),DX!$I:$I,)),INDEX(LR!A:A,MATCH(ROW(A20),LR!$I:$I,))),"") ->  | B25: =IFERROR(IFERROR(INDEX(DX!B:B,MATCH(ROW(B20),DX!$I:$I,)),INDEX(LR!B:B,MATCH(ROW(B20),LR!$I:$I,))),"") ->  | C25: =IFERROR(IFERROR(INDEX(DX!C:C,MATCH(ROW(C20),DX!$I:$I,)),INDEX(LR!C:C,MATCH(ROW(C20),LR!$I:$I,))),"") ->  | D25: =IFERROR(IFERROR(INDEX(DX!D:D,MATCH(ROW(D20),DX!$I:$I,)),INDEX(LR!D:D,MATCH(ROW(D20),LR!$I:$I,))),"") ->  | E25: =IFERROR(IFERROR(INDEX(DX!E:E,MATCH(ROW(E20),DX!$I:$I,)),INDEX(LR!E:E,MATCH(ROW(E20),LR!$I:$I,))),"") ->  | F25: =IFERROR(IFERROR(INDEX(DX!F:F,MATCH(ROW(F20),DX!$I:$I,)),INDEX(LR!F:F,MATCH(ROW(F20),LR!$I:$I,))),"") ->  | G25: =IFERROR(IFERROR(INDEX(DX!G:G,MATCH(ROW(G20),DX!$I:$I,)),INDEX(LR!G:G,MATCH(ROW(G20),LR!$I:$I,))),"") ->  | H25: =IFERROR(IFERROR(INDEX(DX!H:H,MATCH(ROW(H20),DX!$I:$I,)),INDEX(LR!H:H,MATCH(ROW(H20),LR!$I:$I,))),"") -> 
A26: =IFERROR(IFERROR(INDEX(DX!A:A,MATCH(ROW(A21),DX!$I:$I,)),INDEX(LR!A:A,MATCH(ROW(A21),LR!$I:$I,))),"") ->  | B26: =IFERROR(IFERROR(INDEX(DX!B:B,MATCH(ROW(B21),DX!$I:$I,)),INDEX(LR!B:B,MATCH(ROW(B21),LR!$I:$I,))),"") ->  | C26: =IFERROR(IFERROR(INDEX(DX!C:C,MATCH(ROW(C21),DX!$I:$I,)),INDEX(LR!C:C,MATCH(ROW(C21),LR!$I:$I,))),"") ->  | D26: =IFERROR(IFERROR(INDEX(DX!D:D,MATCH(ROW(D21),DX!$I:$I,)),INDEX(LR!D:D,MATCH(ROW(D21),LR!$I:$I,))),"") ->  | E26: =IFERROR(IFERROR(INDEX(DX!E:E,MATCH(ROW(E21),DX!$I:$I,)),INDEX(LR!E:E,MATCH(ROW(E21),LR!$I:$I,))),"") ->  | F26: =IFERROR(IFERROR(INDEX(DX!F:F,MATCH(ROW(F21),DX!$I:$I,)),INDEX(LR!F:F,MATCH(ROW(F21),LR!$I:$I,))),"") ->  | G26: =IFERROR(IFERROR(INDEX(DX!G:G,MATCH(ROW(G21),DX!$I:$I,)),INDEX(LR!G:G,MATCH(ROW(G21),LR!$I:$I,))),"") ->  | H26: =IFERROR(IFERROR(INDEX(DX!H:H,MATCH(ROW(H21),DX!$I:$I,)),INDEX(LR!H:H,MATCH(ROW(H21),LR!$I:$I,))),"") -> 
A27: =IFERROR(IFERROR(INDEX(DX!A:A,MATCH(ROW(A22),DX!$I:$I,)),INDEX(LR!A:A,MATCH(ROW(A22),LR!$I:$I,))),"") ->  | B27: =IFERROR(IFERROR(INDEX(DX!B:B,MATCH(ROW(B22),DX!$I:$I,)),INDEX(LR!B:B,MATCH(ROW(B22),LR!$I:$I,))),"") ->  | C27: =IFERROR(IFERROR(INDEX(DX!C:C,MATCH(ROW(C22),DX!$I:$I,)),INDEX(LR!C:C,MATCH(ROW(C22),LR!$I:$I,))),"") ->  | D27: =IFERROR(IFERROR(INDEX(DX!D:D,MATCH(ROW(D22),DX!$I:$I,)),INDEX(LR!D:D,MATCH(ROW(D22),LR!$I:$I,))),"") ->  | E27: =IFERROR(IFERROR(INDEX(DX!E:E,MATCH(ROW(E22),DX!$I:$I,)),INDEX(LR!E:E,MATCH(ROW(E22),LR!$I:$I,))),"") ->  | F27: =IFERROR(IFERROR(INDEX(DX!F:F,MATCH(ROW(F22),DX!$I:$I,)),INDEX(LR!F:F,MATCH(ROW(F22),LR!$I:$I,))),"") ->  | G27: =IFERROR(IFERROR(INDEX(DX!G:G,MATCH(ROW(G22),DX!$I:$I,)),INDEX(LR!G:G,MATCH(ROW(G22),LR!$I:$I,))),"") ->  | H27: =IFERROR(IFERROR(INDEX(DX!H:H,MATCH(ROW(H22),DX!$I:$I,)),INDEX(LR!H:H,MATCH(ROW(H22),LR!$I:$I,))),"") -> 
A28: =IFERROR(IFERROR(INDEX(DX!A:A,MATCH(ROW(A23),DX!$I:$I,)),INDEX(LR!A:A,MATCH(ROW(A23),LR!$I:$I,))),"") ->  | B28: =IFERROR(IFERROR(INDEX(DX!B:B,MATCH(ROW(B23),DX!$I:$I,)),INDEX(LR!B:B,MATCH(ROW(B23),LR!$I:$I,))),"") ->  | C28: =IFERROR(IFERROR(INDEX(DX!C:C,MATCH(ROW(C23),DX!$I:$I,)),INDEX(LR!C:C,MATCH(ROW(C23),LR!$I:$I,))),"") ->  | D28: =IFERROR(IFERROR(INDEX(DX!D:D,MATCH(ROW(D23),DX!$I:$I,)),INDEX(LR!D:D,MATCH(ROW(D23),LR!$I:$I,))),"") ->  | E28: =IFERROR(IFERROR(INDEX(DX!E:E,MATCH(ROW(E23),DX!$I:$I,)),INDEX(LR!E:E,MATCH(ROW(E23),LR!$I:$I,))),"") ->  | F28: =IFERROR(IFERROR(INDEX(DX!F:F,MATCH(ROW(F23),DX!$I:$I,)),INDEX(LR!F:F,MATCH(ROW(F23),LR!$I:$I,))),"") ->  | G28: =IFERROR(IFERROR(INDEX(DX!G:G,MATCH(ROW(G23),DX!$I:$I,)),INDEX(LR!G:G,MATCH(ROW(G23),LR!$I:$I,))),"") ->  | H28: =IFERROR(IFERROR(INDEX(DX!H:H,MATCH(ROW(H23),DX!$I:$I,)),INDEX(LR!H:H,MATCH(ROW(H23),LR!$I:$I,))),"") -> 
A29: =IFERROR(IFERROR(INDEX(DX!A:A,MATCH(ROW(A24),DX!$I:$I,)),INDEX(LR!A:A,MATCH(ROW(A24),LR!$I:$I,))),"") ->  | B29: =IFERROR(IFERROR(INDEX(DX!B:B,MATCH(ROW(B24),DX!$I:$I,)),INDEX(LR!B:B,MATCH(ROW(B24),LR!$I:$I,))),"") ->  | C29: =IFERROR(IFERROR(INDEX(DX!C:C,MATCH(ROW(C24),DX!$I:$I,)),INDEX(LR!C:C,MATCH(ROW(C24),LR!$I:$I,))),"") ->  | D29: =IFERROR(IFERROR(INDEX(DX!D:D,MATCH(ROW(D24),DX!$I:$I,)),INDEX(LR!D:D,MATCH(ROW(D24),LR!$I:$I,))),"") ->  | E29: =IFERROR(IFERROR(INDEX(DX!E:E,MATCH(ROW(E24),DX!$I:$I,)),INDEX(LR!E:E,MATCH(ROW(E24),LR!$I:$I,))),"") ->  | F29: =IFERROR(IFERROR(INDEX(DX!F:F,MATCH(ROW(F24),DX!$I:$I,)),INDEX(LR!F:F,MATCH(ROW(F24),LR!$I:$I,))),"") ->  | G29: =IFERROR(IFERROR(INDEX(DX!G:G,MATCH(ROW(G24),DX!$I:$I,)),INDEX(LR!G:G,MATCH(ROW(G24),LR!$I:$I,))),"") ->  | H29: =IFERROR(IFERROR(INDEX(DX!H:H,MATCH(ROW(H24),DX!$I:$I,)),INDEX(LR!H:H,MATCH(ROW(H24),LR!$I:$I,))),"") -> 
A30: =IFERROR(IFERROR(INDEX(DX!A:A,MATCH(ROW(A25),DX!$I:$I,)),INDEX(LR!A:A,MATCH(ROW(A25),LR!$I:$I,))),"") ->  | B30: =IFERROR(IFERROR(INDEX(DX!B:B,MATCH(ROW(B25),DX!$I:$I,)),INDEX(LR!B:B,MATCH(ROW(B25),LR!$I:$I,))),"") ->  | C30: =IFERROR(IFERROR(INDEX(DX!C:C,MATCH(ROW(C25),DX!$I:$I,)),INDEX(LR!C:C,MATCH(ROW(C25),LR!$I:$I,))),"") ->  | D30: =IFERROR(IFERROR(INDEX(DX!D:D,MATCH(ROW(D25),DX!$I:$I,)),INDEX(LR!D:D,MATCH(ROW(D25),LR!$I:$I,))),"") ->  | E30: =IFERROR(IFERROR(INDEX(DX!E:E,MATCH(ROW(E25),DX!$I:$I,)),INDEX(LR!E:E,MATCH(ROW(E25),LR!$I:$I,))),"") ->  | F30: =IFERROR(IFERROR(INDEX(DX!F:F,MATCH(ROW(F25),DX!$I:$I,)),INDEX(LR!F:F,MATCH(ROW(F25),LR!$I:$I,))),"") ->  | G30: =IFERROR(IFERROR(INDEX(DX!G:G,MATCH(ROW(G25),DX!$I:$I,)),INDEX(LR!G:G,MATCH(ROW(G25),LR!$I:$I,))),"") ->  | H30: =IFERROR(IFERROR(INDEX(DX!H:H,MATCH(ROW(H25),DX!$I:$I,)),INDEX(LR!H:H,MATCH(ROW(H25),LR!$I:$I,))),"") -> 
A31: =IFERROR(IFERROR(INDEX(DX!A:A,MATCH(ROW(A26),DX!$I:$I,)),INDEX(LR!A:A,MATCH(ROW(A26),LR!$I:$I,))),"") ->  | B31: =IFERROR(IFERROR(INDEX(DX!B:B,MATCH(ROW(B26),DX!$I:$I,)),INDEX(LR!B:B,MATCH(ROW(B26),LR!$I:$I,))),"") ->  | C31: =IFERROR(IFERROR(INDEX(DX!C:C,MATCH(ROW(C26),DX!$I:$I,)),INDEX(LR!C:C,MATCH(ROW(C26),LR!$I:$I,))),"") ->  | D31: =IFERROR(IFERROR(INDEX(DX!D:D,MATCH(ROW(D26),DX!$I:$I,)),INDEX(LR!D:D,MATCH(ROW(D26),LR!$I:$I,))),"") ->  | E31: =IFERROR(IFERROR(INDEX(DX!E:E,MATCH(ROW(E26),DX!$I:$I,)),INDEX(LR!E:E,MATCH(ROW(E26),LR!$I:$I,))),"") ->  | F31: =IFERROR(IFERROR(INDEX(DX!F:F,MATCH(ROW(F26),DX!$I:$I,)),INDEX(LR!F:F,MATCH(ROW(F26),LR!$I:$I,))),"") ->  | G31: =IFERROR(IFERROR(INDEX(DX!G:G,MATCH(ROW(G26),DX!$I:$I,)),INDEX(LR!G:G,MATCH(ROW(G26),LR!$I:$I,))),"") ->  | H31: =IFERROR(IFERROR(INDEX(DX!H:H,MATCH(ROW(H26),DX!$I:$I,)),INDEX(LR!H:H,MATCH(ROW(H26),LR!$I:$I,))),"") -> 
A32: =IFERROR(IFERROR(INDEX(DX!A:A,MATCH(ROW(A27),DX!$I:$I,)),INDEX(LR!A:A,MATCH(ROW(A27),LR!$I:$I,))),"") ->  | B32: =IFERROR(IFERROR(INDEX(DX!B:B,MATCH(ROW(B27),DX!$I:$I,)),INDEX(LR!B:B,MATCH(ROW(B27),LR!$I:$I,))),"") ->  | C32: =IFERROR(IFERROR(INDEX(DX!C:C,MATCH(ROW(C27),DX!$I:$I,)),INDEX(LR!C:C,MATCH(ROW(C27),LR!$I:$I,))),"") ->  | D32: =IFERROR(IFERROR(INDEX(DX!D:D,MATCH(ROW(D27),DX!$I:$I,)),INDEX(LR!D:D,MATCH(ROW(D27),LR!$I:$I,))),"") ->  | E32: =IFERROR(IFERROR(INDEX(DX!E:E,MATCH(ROW(E27),DX!$I:$I,)),INDEX(LR!E:E,MATCH(ROW(E27),LR!$I:$I,))),"") ->  | F32: =IFERROR(IFERROR(INDEX(DX!F:F,MATCH(ROW(F27),DX!$I:$I,)),INDEX(LR!F:F,MATCH(ROW(F27),LR!$I:$I,))),"") ->  | G32: =IFERROR(IFERROR(INDEX(DX!G:G,MATCH(ROW(G27),DX!$I:$I,)),INDEX(LR!G:G,MATCH(ROW(G27),LR!$I:$I,))),"") ->  | H32: =IFERROR(IFERROR(INDEX(DX!H:H,MATCH(ROW(H27),DX!$I:$I,)),INDEX(LR!H:H,MATCH(ROW(H27),LR!$I:$I,))),"") -> 
A33: =IFERROR(IFERROR(INDEX(DX!A:A,MATCH(ROW(A28),DX!$I:$I,)),INDEX(LR!A:A,MATCH(ROW(A28),LR!$I:$I,))),"") ->  | B33: =IFERROR(IFERROR(INDEX(DX!B:B,MATCH(ROW(B28),DX!$I:$I,)),INDEX(LR!B:B,MATCH(ROW(B28),LR!$I:$I,))),"") ->  | C33: =IFERROR(IFERROR(INDEX(DX!C:C,MATCH(ROW(C28),DX!$I:$I,)),INDEX(LR!C:C,MATCH(ROW(C28),LR!$I:$I,))),"") ->  | D33: =IFERROR(IFERROR(INDEX(DX!D:D,MATCH(ROW(D28),DX!$I:$I,)),INDEX(LR!D:D,MATCH(ROW(D28),LR!$I:$I,))),"") ->  | E33: =IFERROR(IFERROR(INDEX(DX!E:E,MATCH(ROW(E28),DX!$I:$I,)),INDEX(LR!E:E,MATCH(ROW(E28),LR!$I:$I,))),"") ->  | F33: =IFERROR(IFERROR(INDEX(DX!F:F,MATCH(ROW(F28),DX!$I:$I,)),INDEX(LR!F:F,MATCH(ROW(F28),LR!$I:$I,))),"") ->  | G33: =IFERROR(IFERROR(INDEX(DX!G:G,MATCH(ROW(G28),DX!$I:$I,)),INDEX(LR!G:G,MATCH(ROW(G28),LR!$I:$I,))),"") ->  | H33: =IFERROR(IFERROR(INDEX(DX!H:H,MATCH(ROW(H28),DX!$I:$I,)),INDEX(LR!H:H,MATCH(ROW(H28),LR!$I:$I,))),"") -> 
A34: =IFERROR(IFERROR(INDEX(DX!A:A,MATCH(ROW(A29),DX!$I:$I,)),INDEX(LR!A:A,MATCH(ROW(A29),LR!$I:$I,))),"") ->  | B34: =IFERROR(IFERROR(INDEX(DX!B:B,MATCH(ROW(B29),DX!$I:$I,)),INDEX(LR!B:B,MATCH(ROW(B29),LR!$I:$I,))),"") ->  | C34: =IFERROR(IFERROR(INDEX(DX!C:C,MATCH(ROW(C29),DX!$I:$I,)),INDEX(LR!C:C,MATCH(ROW(C29),LR!$I:$I,))),"") ->  | D34: =IFERROR(IFERROR(INDEX(DX!D:D,MATCH(ROW(D29),DX!$I:$I,)),INDEX(LR!D:D,MATCH(ROW(D29),LR!$I:$I,))),"") ->  | E34: =IFERROR(IFERROR(INDEX(DX!E:E,MATCH(ROW(E29),DX!$I:$I,)),INDEX(LR!E:E,MATCH(ROW(E29),LR!$I:$I,))),"") ->  | F34: =IFERROR(IFERROR(INDEX(DX!F:F,MATCH(ROW(F29),DX!$I:$I,)),INDEX(LR!F:F,MATCH(ROW(F29),LR!$I:$I,))),"") ->  | G34: =IFERROR(IFERROR(INDEX(DX!G:G,MATCH(ROW(G29),DX!$I:$I,)),INDEX(LR!G:G,MATCH(ROW(G29),LR!$I:$I,))),"") ->  | H34: =IFERROR(IFERROR(INDEX(DX!H:H,MATCH(ROW(H29),DX!$I:$I,)),INDEX(LR!H:H,MATCH(ROW(H29),LR!$I:$I,))),"") -> 
A35: =IFERROR(IFERROR(INDEX(DX!A:A,MATCH(ROW(A30),DX!$I:$I,)),INDEX(LR!A:A,MATCH(ROW(A30),LR!$I:$I,))),"") ->  | B35: =IFERROR(IFERROR(INDEX(DX!B:B,MATCH(ROW(B30),DX!$I:$I,)),INDEX(LR!B:B,MATCH(ROW(B30),LR!$I:$I,))),"") ->  | C35: =IFERROR(IFERROR(INDEX(DX!C:C,MATCH(ROW(C30),DX!$I:$I,)),INDEX(LR!C:C,MATCH(ROW(C30),LR!$I:$I,))),"") ->  | D35: =IFERROR(IFERROR(INDEX(DX!D:D,MATCH(ROW(D30),DX!$I:$I,)),INDEX(LR!D:D,MATCH(ROW(D30),LR!$I:$I,))),"") ->  | E35: =IFERROR(IFERROR(INDEX(DX!E:E,MATCH(ROW(E30),DX!$I:$I,)),INDEX(LR!E:E,MATCH(ROW(E30),LR!$I:$I,))),"") ->  | F35: =IFERROR(IFERROR(INDEX(DX!F:F,MATCH(ROW(F30),DX!$I:$I,)),INDEX(LR!F:F,MATCH(ROW(F30),LR!$I:$I,))),"") ->  | G35: =IFERROR(IFERROR(INDEX(DX!G:G,MATCH(ROW(G30),DX!$I:$I,)),INDEX(LR!G:G,MATCH(ROW(G30),LR!$I:$I,))),"") ->  | H35: =IFERROR(IFERROR(INDEX(DX!H:H,MATCH(ROW(H30),DX!$I:$I,)),INDEX(LR!H:H,MATCH(ROW(H30),LR!$I:$I,))),"") -> 
A36: =IFERROR(IFERROR(INDEX(DX!A:A,MATCH(ROW(A31),DX!$I:$I,)),INDEX(LR!A:A,MATCH(ROW(A31),LR!$I:$I,))),"") ->  | B36: =IFERROR(IFERROR(INDEX(DX!B:B,MATCH(ROW(B31),DX!$I:$I,)),INDEX(LR!B:B,MATCH(ROW(B31),LR!$I:$I,))),"") ->  | C36: =IFERROR(IFERROR(INDEX(DX!C:C,MATCH(ROW(C31),DX!$I:$I,)),INDEX(LR!C:C,MATCH(ROW(C31),LR!$I:$I,))),"") ->  | D36: =IFERROR(IFERROR(INDEX(DX!D:D,MATCH(ROW(D31),DX!$I:$I,)),INDEX(LR!D:D,MATCH(ROW(D31),LR!$I:$I,))),"") ->  | E36: =IFERROR(IFERROR(INDEX(DX!E:E,MATCH(ROW(E31),DX!$I:$I,)),INDEX(LR!E:E,MATCH(ROW(E31),LR!$I:$I,))),"") ->  | F36: =IFERROR(IFERROR(INDEX(DX!F:F,MATCH(ROW(F31),DX!$I:$I,)),INDEX(LR!F:F,MATCH(ROW(F31),LR!$I:$I,))),"") ->  | G36: =IFERROR(IFERROR(INDEX(DX!G:G,MATCH(ROW(G31),DX!$I:$I,)),INDEX(LR!G:G,MATCH(ROW(G31),LR!$I:$I,))),"") ->  | H36: =IFERROR(IFERROR(INDEX(DX!H:H,MATCH(ROW(H31),DX!$I:$I,)),INDEX(LR!H:H,MATCH(ROW(H31),LR!$I:$I,))),"") -> 

Sheet DX
F1: Сумма заказа | H1: =SUM(H6:H101) -> 0
F3: Вы сэкономили | H3: =SUM(E6:E101)-H1 -> 38597.55
A5: Арт. | B5: Наименование | C5: Остаток | D5: Тариф, руб. | E5: Сумма, руб. | F5: Кол-во | G5: Спеццена, руб. | H5: Сумма покупки, руб.
A6: 3392 | B6: DX ВА 1п C63 6000A 6кА | C6: 48 | D6: 462.2 | E6: =F6*D6 -> 0 | H6: =F6*G6 -> 0 | I6: =IF(F6,I5+1,I5) -> 0
A7: 3391 | B7: DX ВА 1п C50 6000A 6кА | C7: 40 | D7: 924.4 | E7: 0 | H7: =F7*G7 -> 0 | I7: =IF(F7,I6+1,I6) -> 0
A8: 3389 | B8: DX ВА 1п C32 6000A 6кА | C8: 39 | D8: 300.36 | E8: 0 | H8: 0 | I8: 0
A9: 3390 | B9: DX ВА 1п C40 6000A 6кА | C9: 33 | D9: 471.09 | E9: 0 | H9: 0 | I9: 0
A10: 6375 | B10: DX ВА 1п C13 6000A 10кА | C10: 5 | D10: 208.96 | E10: 0 | H10: 0 | I10: 0
A11: 8014 | B11: DX АВДТ 4п 30мА С50 6000A 10кА | C11: 1 | D11: 3878.58 | E11: 0 | H11: 0 | I11: 0
A12: 8995 | B12: DX ВДТ 4п 30мA AC63 | C12: 3 | D12: 4219.42 | E12: 16877.68 | F12: 4 | H12: 0 | I12: 1
A13: 4076 | B13: Силов.реле 230В 2п 63А 2НЗ | C13: 3 | D13: 4475.88 | E13: 0 | H13: 0 | I13: 1
A14: 8916 | B14: DX ВДТ 2п 100мA AC40 | C14: 1 | D14: 1257.01 | E14: 0 | H14: 0 | I14: 1
A15: 3498 | B15: DX ВА 4п C50 6000A 6кА | C15: 2 | D15: 2654.34 | E15: 0 | H15: 0 | I15: 1
A16: 7966 | B16: DX АВДТ 4п 30мА С25 6000A 10кА | C16: 1 | D16: 3750.71 | E16: 18753.55 | F16: 5 | H16: 0 | I16: 2
A17: 6017 | B17: DX ВА 1п+н C10 4500А 4,5 кА | C17: 4 | D17: 332.75 | E17: 0 | H17: 0 | I17: 2
A18: 4358 | B18: Модул.выключатель 3п 125А 3м | C18: 1 | D18: 2081.26 | E18: 0 | H18: 0 | I18: 2
A19: 3308 | B19: DX ВА 2п B06 6000A 6кА | C19: 2 | D19: 464.12 | E19: 0 | H19: 0 | I19: 2
A20: 3431 | B20: DX ВА 2п C10 6000A 6кА | C20: 2 | D20: 423.76 | E20: 2966.32 | F20: 7 | H20: 0 | I20: 3
A21: 3312 | B21: DX ВА 2п B16 6000A 6кА | C21: 4 | D21: 480.12 | E21: 0 | H21: 0 | I21: 3
A22: 4323 | B22: Модул.выключатель 2п 20А с инд | C22: 8 | D22: 618.23 | E22: 0 | H22: 0 | I22: 3
A23: 3435 | B23: DX ВА 2п C25 6000A 6кА | C23: 2 | D23: 416.5 | E23: 0 | H23: 0 | I23: 3
A24: 3449 | B24: DX ВА 3п C10 6000A 6кА | C24: 3 | D24: 590.18 | E24: 0 | H24: 0 | I24: 3
A25: 8994 | B25: DX ВДТ 4п 30мA AC40 | C25: 2 | D25: 1879.57 | E25: 0 | H25: 0 | I25: 3
A26: 3451 | B26: DX ВА 3п C16 6000A 6кА | C26: 2 | D26: 590.18 | E26: 0 | H26: 0 | I26: 3
A27: 7964 | B27: DX АВДТ 4п 30мА С16 6000A 10кА | C27: 2 | D27: 3670.91 | E27: 0 | H27: 0 | I27: 3
A28: 9013 | B28: DX ВДТ 4п 300мA AC63 | C28: 1 | D28: 1699.04 | E28: 0 | H28: 0 | I28: 3
A29: 9019 | B29: DX ВДТ 4п 300мA AC63 селек. | C29: 1 | D29: 3495.79 | E29: 0 | H29: 0 | I29: 3
A30: 9001 | B30: DX ВДТ 4п 100мA AC63 | C30: 1 | D30: 1879.49 | E30: 0 | H30: 0 | I30: 3
A31: 7952 | B31: DX АВДТ 2п 300мА С63 6000A10кА | C31: 1 | D31: 2672.94 | E31: 0 | H31: 0 | I31: 3
A32: 3447 | B32: DX ВА 3п C06 6000A 6кА | C32: 1 | D32: 590.18 | E32: 0 | H32: 0 | I32: 3
A33: 26208 | B33: DPX125 Суппорт д/уст.на рейку | C33: 1 | D33: 201.68 | E33: 0 | H33: 0 | I33: 3
A34: 4079 | B34: Силов.реле 230В 4п 63А 4НЗ | C34: 1 | D34: 2761.09 | E34: 0 | H34: 0 | I34: 3
A35: 7901 | B35: DX АВДТ1п+н300мА AC40 6000А6кА | C35: 1 | D35: 3059.44 | E35: 0 | H35: 0 | I35: 3
A36: 8591 | B36: DXАВДТ1п+н30мА A40 6000А 10кА | C36: 1 | D36: 6829.84 | E36: 0 | H36: 0 | I36: 3
A37: 8927 | B37: DX ВДТ 2п 300мA AC25 | C37: 1 | D37: 1197.38 | E37: 0 | H37: 0 | I37: 3
A38: 8911 | B38: DX ВДТ 2п 30мA AC63 | C38: 1 | D38: 1460.44 | E38: 0 | H38: 0 | I38: 3
A39: 6383 | B39: DX ВА 1п C80 10000A 12,5кА | C39: 1 | D39: 1452.78 | E39: 0 | H39: 0 | I39: 3
A40: 4049 | B40: Силов.реле 230В 2п 20А 2НО | C40: 2 | D40: 1246.68 | E40: 0 | H40: 0 | I40: 3
A41: 4073 | B41: Силов.реле 24В 2п 63А 2НО | C41: 1 | D41: 1708.88 | E41: 0 | H41: 0 | I41: 3
A42: 8915 | B42: DX ВДТ 2п 100мA AC25 | C42: 1 | D42: 1164 | E42: 0 | H42: 0 | I42: 3
A43: 8910 | B43: DX ВДТ 2п 30мA AC40 | C43: 1 | D43: 1116.46 | E43: 0 | H43: 0 | I43: 3
A44: 22520 | B44: VistopВык.3п/100Афрон.прив чер | C44: 1 | D44: 2542.82 | E44: 0 | H44: 0 | I44: 3

Sheet LR
F1: Сумма заказа | H1: =SUM(H6:H101) -> 0
F3: Вы сэкономили | H3: =SUM(E6:E101)-H1 -> 40909.84
A5: Арт. | B5: Наименование | C5: Остаток | D5: Тариф, руб. | E5: Сумма, руб. | F5: Кол-во | G5: Спеццена, руб. | H5: Сумма покупки, руб. | I5: =MAX(DX!I:I) -> 3
A6: 604826 | B6: LR ВА 2п C63 6000A 6кА | C6: 9 | D6: 669.74 | E6: =F6*D6 -> 0 | H6: =F6*G6 -> 0 | I6: =IF(F6,I5+1,I5) -> 3
A7: 604809 | B7: LR ВА 1п C40 6000A 6кА | C7: 80 | D7: 544.08 | E7: 0 | H7: 0 | I7: =IF(F7,I6+1,I6) -> 3
A8: 604810 | B8: LR ВА 1п C50 6000A 6кА | C8: 62 | D8: 737.35 | E8: 0 | H8: 0 | I8: 3
A9: 604821 | B9: LR ВА 2п C20 6000A 6кА | C9: 17 | D9: 558.98 | E9: 0 | H9: 0 | I9: 3
A10: 602146 | B10: LR ВДТ 4п AC25 30мА 6кА | C10: 8 | D10: 3289.52 | E10: 0 | H10: 0 | I10: 3
A11: 604840 | B11: LR ВА 3п C50 6000A 6кА | C11: 6 | D11: 999.32 | E11: 0 | H11: 0 | I11: 3
A12: 604839 | B12: LR ВА 3п C40 6000A 6кА | C12: 4 | D12: 899.36 | E12: 0 | H12: 0 | I12: 3
A13: 604841 | B13: LR ВА 3п C63 6000A 6кА | C13: 4 | D13: 1000.3 | E13: 0 | H13: 0 | I13: 3
A14: 604832 | B14: LR ВА 3п C06 6000A 6кА | C14: 1 | D14: 444.91 | E14: 34702.98 | F14: 78 | H14: 0 | I14: 4
A15: 604837 | B15: LR ВА 3п C25 6000A 6кА | C15: 1 | D15: 388.45 | E15: 0 | H15: 0 | I15: 4
A16: 604833 | B16: LR ВА 3п C10 6000A 6кА | C16: 5 | D16: 776.9 | E16: 0 | H16: 0 | I16: 4
A17: 604836 | B17: LR ВА 3п C20 6000A 6кА | C17: 2 | D17: 388.45 | E17: 0 | H17: 0 | I17: 4
A18: 604835 | B18: LR ВА 3п C16 6000A 6кА | C18: 1 | D18: 388.45 | E18: 0 | H18: 0 | I18: 4
A19: 604811 | B19: LR ВА 1п C63 6000A 6кА | C19: 26 | D19: 148.66 | E19: 0 | H19: 0 | I19: 4
A20: 604820 | B20: LR ВА 2п C16 6000A 6кА | C20: 12 | D20: 558.98 | E20: 0 | H20: 0 | I20: 4
A21: 604818 | B21: LR ВА 2п C10 6000A 6кА | C21: 12 | D21: 558.98 | E21: 0 | H21: 0 | I21: 4
A22: 604823 | B22: LR ВА 2п C32 6000A 6кА | C22: 5 | D22: 282.13 | E22: 6206.86 | F22: 22 | H22: 0 | I22: 5
A23: 604802 | B23: LR ВА 1п C06 6000А 6кА | C23: 80 | D23: 252.58 | E23: 0 | H23: 0 | I23: 5
A24: 604822 | B24: LR ВА 2п C25 6000A 6кА | C24: 20 | D24: 558.98 | E24: 0 | H24: 0 | I24: 5
A25: 604808 | B25: LR ВА 1п C32 6000A 6кА | C25: 20 | D25: 257.6 | E25: 0 | H25: 0 | I25: 5
A26: 604824 | B26: LR ВА 2п C40 6000A 6кА | C26: 2 | D26: 282.13 | E26: 0 | H26: 0 | I26: 5
A27: 602147 | B27: LR ВДТ 4п AC40 30мА 6кА | C27: 4 | D27: 1646.72 | E27: 0 | H27: 0 | I27: 5
A28: 602138 | B28: LR ВДТ 2п AC63 30мА 6кА | C28: 6 | D28: 1105.79 | E28: 0 | H28: 0 | I28: 5

Sheet Общий
A1: Арт. | B1: Наименование | C1: Кол-во | D1: Цена, руб. | E1: Сумма, руб.
A2: 470508 | B2: Блок питания 12В=, 60Вт | C2: 1 | D2: 6296 | E2: 6296
A3: 461067 | B3: Трансформатор электронный 60вт E-Trafo | C3: 8 | D3: 969 | E3: 7752
A4: 37300 | B4: XL3 160 Доп.латун.колодка | C4: 2 | D4: 936.24 | E4: =C4*D4 -> 1872.48
A5: 4848 | B5: Клемм.син.2х6-25+33х1.5-16мм2 | C5: 1 | D5: 436.72 | E5: =C5*D5 -> 436.72
A6: 51694 | B6: IN ONEШнур перех.RJ45-RJ11 | C6: 10 | D6: 310.88 | E6: 3108.8
A7: 601051 | B7: EkinoxeNX Шкаф 1x4м(бел.дв) | C7: 2 | D7: 475.85 | E7: 951.7
A8: 34080 | B8: VDIФикс-р д/каб. д/шкафа 400мм | C8: 2 | D8: 591 | E8: 1182
A9: 20051 | B9: XL3 160 Заглушка рAL 7035 24м | C9: 4 | D9: 149.86 | E9: 599.44
A10: 1631 | B10: Ekinoxe TX Дверь бел. 1X18м | C10: 1 | D10: 689.53 | E10: 689.53
A11: 1602 | B11: Ekinoxe TX Шкаф 2Х18м | C11: 1 | D11: 2068.97 | E11: 2068.97
A12: 1412 | B12: NedboxЩит вст.д/ав.2х12+4м бел | C12: 1 | D12: 1218.04 | E12: 1218.04
A13: 1601 | B13: Ekinoxe TX Шкаф 1Х18м | C13: 1 | D13: 1487.97 | E13: 1487.97
A14: 1769 | B14: Plexо шкафы Кронш.для креп. | C14: 1 | D14: 428.89 | E14: 428.89
A15: 32734 | B15: EkinoxeТелефон. блок 8RJ45 | C15: 1 | D15: 930.11 | E15: 930.11
A16: 4803 | B16: Клем.б/изол.1х6-25+8х1.5-16мм2 | C16: 2 | D16: 97.48 | E16: 194.96
A17: 1491 | B17: Nedbox Замок врезной №850 | C17: 1 | D17: 449.24 | E17: 449.24
A18: 36806 | B18: Atl.Защел.с руч+кл.д/запир.шк. | C18: 7 | D18: 348.96 | E18: 2442.72
A19: MTN478544 | B19: Рамка 5 постов бежевый | C19: 1 | D19: 1831 | E19: 1831
A20: N1519-WH | B20: Встраиваемый светильник Donolux N1519-WH | C20: 1 | D20: 1180 | E20: 1180
A21: L4141 | B21: Розетка 2П + заземление (боков.) 10А/16А с защитными шторками 2 модуля | C21: 2 | D21: 1042.23 | E21: 2084.46
A22: HA4802M2HBR | B22: Рамка 2х2П 71мм горизонтальная Бронза Axolute | C22: 1 | D22: 4517.49 | E22: 4517.49
A23: 5572BL | B23: Рамка 2-постовая вертикальная, серия TACTO, цвет альпийский белый | C23: 20 | D23: 301 | E23: 6020
A24: NT4141 | B24: Розетка 2П + заземление (боков.) 10А/16А с защитными шторками 2 модуля | C24: 1 | D24: 1042.23 | E24: 1042.23
A25: HC4279C6 | B25: Розетка Axolute RJ45 UTP Cat. 6 | C25: 1 | D25: 2361.63 | E25: 2361.63
A26: H4743/230B | B26: Axolute. Лампа LED для подсветки 230В. Цвет Синий | C26: 1 | D26: 1165.31 | E26: 1165.31
A27: L4951 | B27: Заглушка 2 модуля с выламываемой вставкой, чёрная | C27: 4 | D27: 254.17 | E27: 1016.68
A28: LN4707 | B28: Суппорт 7 Модулей L/N/Nt | C28: 1 | D28: 383.35 | E28: 383.35
A29: LN4704 | B29: Суппорт 4 Модуля L/N/Nt | C29: 1 | D29: 282.8 | E29: 282.8
A30: LN4702 | B30: Livinglight Суппорт пластиковый на 2 модуля на винтах | C30: 4 | D30: 209.48 | E30: 837.92
A31: 1754-0-4171 | B31: Рамка 4-постовая, серия future, цвет savanne/слоновая кость | C31: 3 | D31: 1154,88 | E31: =C31*D31 -> 3464.64
A32: 1754-0-4169 | B32: Рамка 2-постовая, серия future, цвет savanne/слоновая кость | C32: 1 | D32: 317,32 | E32: =C32*D32 -> 317.32
A33: 1754-0-4168 | B33: Рамка 1-постовая, серия future, цвет savanne/слоновая кость | C33: 2 | D33: 253,13 | E33: 506.26
A34: 1724-0-2758 | B34: Накладка (центральная плата) для TV-R-SAT розетки, серия solo/future, цвет savanne/слоновая кость | C34: 3 | D34: 351,72 | E34: 1055.16
A35: 6430-0-0337 | B35: Клавиша для механизма электронного выключателя Busch-Jalousiecontrol 6411 U-101, 6411 U/S-101, 6418 U, реле 6402 U, серия impuls, цвет слоновая кость | C35: 2 | D35: 3503,10 | E35: 7006.2
A36: 6410-0-0376 | B36: Механизм базового электронного выключателя жалюзи, 3А при cosφ=0.5 | C36: 1 | D36: 5314,91 | E36: 5314.91
A37: 1012-0-2110 | B37: Механизм 1-клавишного, 1-полюсного переключателя, 10А 250В | C37: 3 | D37: 440,14 | E37: 1320.42
A38: 1012-0-2131 | B38: Механизм 1-клавишного, 1-полюсного выключателя, 10А 250В | C38: 1 | D38: 479,48 | E38: 479.48
A39: 87745 | B39: Sagane-Xeliomat Обрамление алюминий д/розетки 2P+E нем.стд. | C39: 2 | D39: 426.3 | E39: 852.6
A40: 84210 | B40: Sagane розетка 2P+E немец. Стандарт | C40: 2 | D40: 366.7 | E40: 733.4
A41: 82410 | B41: Sagane-Xeliomat Рамка 1-я хром | C41: 2 | D41: 1046 | E41: 2092
A42: 82815-61 | B42: Рамка декоративная, 1 пост, S82, вишня-графит | C42: 1 | D42: 990.27552 | E42: =C42*D42 -> 990.27552
A43: 73630-31 | B43: Рамка с вырезом под вставку, 3 поста, 82*231мм, S73, слоновая кость | C43: 7 | D43: 405.99936 | E43: =C43*D43 -> 2841.99552
A44: 82710-31 | B44: Рамка декоративная, 1 пост, S82, слоновая кость-слоновая кость | C44: 10 | D44: 186.83808 | E44: 1868.3808
A45: 73610-31 | B45: Рамка с вырезом под вставку, 1 пост, 82*89мм, S73, слоновая кость | C45: 6 | D45: 162.47712 | E45: 974.86272
A46: 73398-39 | B46: Выключатель двухклавишный, 10А 250В, S73, S73 Loft | C46: 27 | D46: 603.04608 | E46: 16282.24416
A47: 73101-39 | B47: Выключатель одноклавишный, 10А 250В, S73, S73 Loft | C47: 7 | D47: 392.29632 | E47: 2746.07424
A48: 82066-32 | B48: Светящаяся клавиша под светофильтр с комплектом подключения к одноклавишному и кнопочному выключател | C48: 4 | D48: 2127.57792 | E48: 8510.31168
A49: 73910-39 | B49: Вставка декоративная в рамку, S73, слоновая кость | C49: 8 | D49: 75.54144 | E49: 604.33152
A50: 75432-39 | B50: Розетка двухполюсная с заземлением Schuko, 16А 250В, винтовой зажим, S82, S82N, S88, S82 Detail | C50: 1 | D50: 359.03712 | E50: 359.03712
A51: 75431-39 | B51: Розетка двухполюсная без заземления, 16А 250В, винтовой зажим, S82, S82N, S88, S82 Detail | C51: 1 | D51: 355.81728 | E51: 355.81728
A52: 75101-39 | B52: Выключатель одноклавишный, S82, S82N, S88, S82 Detail | C52: 3 | D52: 305.18592 | E52: 915.55776
A53: 75398-39 | B53: Выключатель двухклавишный, 10А 250В, S82, S82N, S88, S82 Detail | C53: 4 | D53: 657.67104 | E53: 2630.68416
A54: 775957 | B54: GLПерек.д/вен.1К 3п.б/"0"PRO21 | C54: 1 | D54: 1314.11 | E54: 1314.11
A55: 771510 | B55: G.Life Л.п. выкл. Pearl | C55: 2 | D55: 723.2 | E55: 723.2
A56: 771212 | B56: G.LifeЛ.п.д.дв.выкл.D. BR. | C56: 1 | D56: 577.16 | E56: 577.16
A57: 771275 | B57: G.Life Л.п.д.телеф.и RJ D.BR. | C57: 1 | D57: 1109.21 | E57: 1109.21
A58: 775821 | B58: G.L.Выкл.с подс./инд.PRO21 | C58: 51 | D58: 1497.2 | E58: 19089.3
A59: 775802 | B59: G.L.Выключ.двухполюсн.PRO21 | C59: 1 | D59: 1606.95 | E59: 1606.95
A60: 775811 | B60: G.L.Выключ.кнопочный PRO21 | C60: 2 | D60: 830.46 | E60: 1660.92
A61: 775828 | B61: GaleaLifeRJ45кат.6 UTP 1 вых. | C61: 1 | D61: 1443.66 | E61: 1443.66
A62: 775847 | B62: GaleaLifeRJ 45кат.6 UTP 2вых. | C62: 3 | D62: 1482.8 | E62: 4448.4
A63: 775806 | B63: G.L.Перекл.на 2напр.PRO21 | C63: 5 | D63: 1760.16 | E63: 4400.4
A64: 771502 | B64: G.Life Р. 2п pearl гор. | C64: 1 | D64: 901.43 | E64: 901.43
A65: 775600 | B65: G.L.PRO21Вык.с подсв,ламп.зел. | C65: 20 | D65: 2439.94 | E65: 24399.4
A66: 775789 | B66: G.L.TV-RD-SATзвезда1,5дБ PRO21 | C66: 5 | D66: 1864.32 | E66: 9321.6
A67: 775971 | B67: G.L.Р.TV-FM-SAT пр.1,5дБPRO21 | C67: 3 | D67: 492.02 | E67: 1476.06
A68: 777078 | B68: Galea-Деко Заглушка бел. | C68: 8 | D68: 1203.52 | E68: 9628.16
A69: 775801 | B69: G.L.Выключ.PRO21 | C69: 29 | D69: 2636.44 | E69: 19114.19
A70: 775938 | B70: G.L. Роз.1хRJ11 PRO21 | C70: 3 | D70: 1767.22 | E70: 2650.83
A71: 775975 | B71: G.L.Р. тел. RJ45 ISDN 8 конт. | C71: 4 | D71: 6986.67 | E71: 9315.56
A72: 775903 | B72: G.L.Севтор.420Вт-420ВА PRO21 | C72: 3 | D72: 12830.65 | E72: 38491.95
A73: 775825 | B73: G.L.Выкл.двухкл.с подс.PRO21 | C73: 2 | D73: 2664.43 | E73: 5328.86
A74: 775653 | B74: G.L.Светорегулятор на 600Вт | C74: 1 | D74: 10331.46 | E74: 10331.46
A75: 777878 | B75: Galea Л.пан.выв.каб.перламутр | C75: 1 | D75: 152.53 | E75: 152.53
A76: 775762 | B76: GaleaLifeRJ45к.5еUTP2вых.н/экр | C76: 6 | D76: 2187.09 | E76: 13122.54
A77: 775920 | B77: G.L.Р.с пруж.клем.нем.ст.PRO21 | C77: 2 | D77: 544.22 | E77: 1088.44
A78: 775785 | B78: G.L. Роз. простая для колонки | C78: 11 | D78: 3664.06 | E78: 20152.33
A79: 775784 | B79: G.L. Роз. двойная для колонки | C79: 13 | D79: 4596.34 | E79: 29876.21
A80: 775791 | B80: G.L.TV-RD-SATпрох.14дБ PRO21 | C80: 1 | D80: 1928.33 | E80: 1928.33
A81: 775805 | B81: G.L.Выкл.двухклав.PRO21 | C81: 1 | D81: 1241.01 | E81: 1241.01
A82: 771401 | B82: G.Life Рамка 1п titanium | C82: 3 | D82: 613.23 | E82: 1839.69
A83: 771420 | B83: G.Life Л.п. д.роз.2К+З titan. | C83: 1 | D83: 327.97 | E83: 327.97
A84: 771412 | B84: G.Life Л.п. д/дв. выкл.titan. | C84: 1 | D84: 577.16 | E84: 577.16
A85: 771512 | B85: G.Life Л.п. д/дв.выкл. Pearl | C85: 8 | D85: 552.19 | E85: 4417.52
A86: 777020 | B86: Galea-Деко Л.п.д/роз.2К+З н.ст | C86: 2 | D86: 215.62 | E86: 431.24
A87: 771310 | B87: G.Life Л. п. выкл. Aluminium | C87: 7 | D87: 384.91 | E87: 2694.37
A88: 777066 | B88: Galea-ДекоЛ.п. TV бел. | C88: 5 | D88: 353.59 | E88: 1767.95
A89: 771079 | B89: GL Л.п.д.дв.вкл. с инд white | C89: 9 | D89: 648.92 | E89: 5840.28
A90: 771003 | B90: G.Life Рамка 3 п, WHITE, гор. | C90: 4 | D90: 765.61 | E90: 3062.44
A91: 771302 | B91: G.Life Р. 2п alum.гор. | C91: 1 | D91: 1166.89 | E91: 1166.89
A92: 771520 | B92: G.Life Л.п. роз. 2К+З pearl | C92: 1 | D92: 292.38 | E92: 292.38
A93: 3392 | B93: DX ВА 1п C63 6000A 6кА | C93: 48 | D93: 462.2 | E93: 11092.8
A94: 3391 | B94: DX ВА 1п C50 6000A 6кА | C94: 40 | D94: 924.4 | E94: 9244
A95: 3389 | B95: DX ВА 1п C32 6000A 6кА | C95: 39 | D95: 300.36 | E95: 5857.02
A96: 3390 | B96: DX ВА 1п C40 6000A 6кА | C96: 33 | D96: 471.09 | E96: 5181.99
A97: 6375 | B97: DX ВА 1п C13 6000A 10кА | C97: 5 | D97: 208.96 | E97: 1044.8
A98: 8014 | B98: DX АВДТ 4п 30мА С50 6000A 10кА | C98: 1 | D98: 3878.58 | E98: 3878.58
A99: 8995 | B99: DX ВДТ 4п 30мA AC63 | C99: 3 | D99: 4219.42 | E99: 6329.13
A100: 4076 | B100: Силов.реле 230В 2п 63А 2НЗ | C100: 3 | D100: 4475.88 | E100: 6713.82
A101: 8916 | B101: DX ВДТ 2п 100мA AC40 | C101: 1 | D101: 1257.01 | E101: 1257.01
A102: 3498 | B102: DX ВА 4п C50 6000A 6кА | C102: 2 | D102: 2654.34 | E102: 2654.34
A103: 7966 | B103: DX АВДТ 4п 30мА С25 6000A 10кА | C103: 1 | D103: 3750.71 | E103: 3750.71
A104: 6017 | B104: DX ВА 1п+н C10 4500А 4,5 кА | C104: 4 | D104: 332.75 | E104: 1331
A105: 4358 | B105: Модул.выключатель 3п 125А 3м | C105: 1 | D105: 2081.26 | E105: 2081.26
A106: 3308 | B106: DX ВА 2п B06 6000A 6кА | C106: 2 | D106: 464.12 | E106: 928.24
A107: 3431 | B107: DX ВА 2п C10 6000A 6кА | C107: 2 | D107: 423.76 | E107: 847.52
A108: 3312 | B108: DX ВА 2п B16 6000A 6кА | C108: 4 | D108: 480.12 | E108: 1920.48
A109: 4323 | B109: Модул.выключатель 2п 20А с инд | C109: 8 | D109: 618.23 | E109: 4945.84
A110: 3435 | B110: DX ВА 2п C25 6000A 6кА | C110: 2 | D110: 416.5 | E110: 833
A111: 3449 | B111: DX ВА 3п C10 6000A 6кА | C111: 3 | D111: 590.18 | E111: 1770.54
A112: 8994 | B112: DX ВДТ 4п 30мA AC40 | C112: 2 | D112: 1879.57 | E112: 3759.14
A113: 3451 | B113: DX ВА 3п C16 6000A 6кА | C113: 2 | D113: 590.18 | E113: 1180.36
A114: 7964 | B114: DX АВДТ 4п 30мА С16 6000A 10кА | C114: 2 | D114: 3670.91 | E114: 7341.82
A115: 9013 | B115: DX ВДТ 4п 300мA AC63 | C115: 1 | D115: 1699.04 | E115: 1699.04
A116: 9019 | B116: DX ВДТ 4п 300мA AC63 селек. | C116: 1 | D116: 3495.79 | E116: 3495.79
A117: 9001 | B117: DX ВДТ 4п 100мA AC63 | C117: 1 | D117: 1879.49 | E117: 1879.49
A118: 7952 | B118: DX АВДТ 2п 300мА С63 6000A10кА | C118: 1 | D118: 2672.94 | E118: 2672.94
A119: 3447 | B119: DX ВА 3п C06 6000A 6кА | C119: 1 | D119: 590.18 | E119: 590.18
A120: 26208 | B120: DPX125 Суппорт д/уст.на рейку | C120: 1 | D120: 201.68 | E120: 201.68
A121: 4079 | B121: Силов.реле 230В 4п 63А 4НЗ | C121: 1 | D121: 2761.09 | E121: 2761.09
A122: 7901 | B122: DX АВДТ1п+н300мА AC40 6000А6кА | C122: 1 | D122: 3059.44 | E122: 3059.44
A123: 8591 | B123: DXАВДТ1п+н30мА A40 6000А 10кА | C123: 1 | D123: 6829.84 | E123: 6829.84
A124: 8927 | B124: DX ВДТ 2п 300мA AC25 | C124: 1 | D124: 1197.38 | E124: 1197.38
A125: 8911 | B125: DX ВДТ 2п 30мA AC63 | C125: 1 | D125: 1460.44 | E125: 1460.44
A126: 6383 | B126: DX ВА 1п C80 10000A 12,5кА | C126: 1 | D126: 1452.78 | E126: 1452.78
A127: 4049 | B127: Силов.реле 230В 2п 20А 2НО | C127: 2 | D127: 1246.68 | E127: 1246.68
A128: 4073 | B128: Силов.реле 24В 2п 63А 2НО | C128: 1 | D128: 1708.88 | E128: 1708.88
A129: 8915 | B129: DX ВДТ 2п 100мA AC25 | C129: 1 | D129: 1164 | E129: 1164
A130: 8910 | B130: DX ВДТ 2п 30мA AC40 | C130: 1 | D130: 1116.46 | E130: 1116.46
A131: 22520 | B131: VistopВык.3п/100Афрон.прив чер | C131: 1 | D131: 2542.82 | E131: =C131*D131 -> 2542.82
A132: 604826 | B132: LR ВА 2п C63 6000A 6кА | C132: 9 | D132: 669.74 | E132: 3013.83
A133: 604809 | B133: LR ВА 1п C40 6000A 6кА | C133: 80 | D133: 544.08 | E133: 10881.6
A134: 604810 | B134: LR ВА 1п C50 6000A 6кА | C134: 62 | D134: 737.35 | E134: 9143.14
A135: 604821 | B135: LR ВА 2п C20 6000A 6кА | C135: 17 | D135: 558.98 | E135: 4751.33
A136: 602146 | B136: LR ВДТ 4п AC25 30мА 6кА | C136: 8 | D136: 3289.52 | E136: 13158.08
A137: 604840 | B137: LR ВА 3п C50 6000A 6кА | C137: 6 | D137: 999.32 | E137: 2997.96
A138: 604839 | B138: LR ВА 3п C40 6000A 6кА | C138: 4 | D138: 899.36 | E138: 1798.72
A139: 604841 | B139: LR ВА 3п C63 6000A 6кА | C139: 4 | D139: 1000.3 | E139: 2000.6
A140: 604832 | B140: LR ВА 3п C06 6000A 6кА | C140: 1 | D140: 444.91 | E140: 444.91
A141: 604837 | B141: LR ВА 3п C25 6000A 6кА | C141: 1 | D141: 388.45 | E141: 388.45
A142: 604833 | B142: LR ВА 3п C10 6000A 6кА | C142: 5 | D142: 776.9 | E142: 1942.25
A143: 604836 | B143: LR ВА 3п C20 6000A 6кА | C143: 2 | D143: 388.45 | E143: 776.9
A144: 604835 | B144: LR ВА 3п C16 6000A 6кА | C144: 1 | D144: 388.45 | E144: 388.45
A145: 604811 | B145: LR ВА 1п C63 6000A 6кА | C145: 26 | D145: 148.66 | E145: 3865.16
A146: 604820 | B146: LR ВА 2п C16 6000A 6кА | C146: 12 | D146: 558.98 | E146: 3353.88
A147: 604818 | B147: LR ВА 2п C10 6000A 6кА | C147: 12 | D147: 558.98 | E147: 3353.88
A148: 604823 | B148: LR ВА 2п C32 6000A 6кА | C148: 5 | D148: 282.13 | E148: 1410.65
A149: 604802 | B149: LR ВА 1п C06 6000А 6кА | C149: 80 | D149: 252.58 | E149: 10103.2
A150: 604822 | B150: LR ВА 2п C25 6000A 6кА | C150: 20 | D150: 558.98 | E150: 5589.8
A151: 604808 | B151: LR ВА 1п C32 6000A 6кА | C151: 20 | D151: 257.6 | E151: 2576
A152: 604824 | B152: LR ВА 2п C40 6000A 6кА | C152: 2 | D152: 282.13 | E152: 564.26
A153: 602147 | B153: LR ВДТ 4п AC40 30мА 6кА | C153: 4 | D153: 1646.72 | E153: 6586.88
A154: 602138 | B154: LR ВДТ 2п AC63 30мА 6кА | C154: 6 | D154: 1105.79 | E154: 6634.74
A155: 774161 | B155: Регулирование и управление поворотом рукоятки - Valena - 40-400 Вт/40-400 ВА - слоновая кость | C155: 1 | D155: 2594.04 | E155: 2594.04
A156: 774417 | B156: Valena Светорег.40-400Вт(бел) | C156: 4 | D156: 2355.9 | E156: 4711.8
A157: 770074 | B157: Кнопочный светорегулятор - Valena - 40-600 Вт/40-600 ВА - белый | C157: 3 | D157: 3703.12 | E157: 11109.36
A158: 770061 | B158: Регулирование и управление поворотом рукоятки - Valena - 40-400 Вт/40-400 ВА - белый | C158: 3 | D158: 2594.04 | E158: 7782.12
A159: 774281 | B159: Valena Рамка 1п.гор.золото | C159: 30 | D159: 165.28 | E159: 2479.2
A160: 774453 | B160: Рамка - Valena - 3 поста - горизонтальный монтаж - белый | C160: 9 | D160: 454.92 | E160: 2047.14
A161: 774322 | B161: Силовая розетка - Valena - 2К+3 - с откидной крышкой - на винтах - 10/16 А - 230/250 В~ - слоновая кость | C161: 12 | D161: 703.54 | E161: 4221.24
A162: 774306 | B162: Переключатель на два направления - Valena - 10 A - 250 В~ - слоновая кость | C162: 2 | D162: 591.74 | E162: 591.74
A163: 774310 | B163: Выключатель с подсветкой - Valena - 10 A - 250 В~ - слоновая кость | C163: 213 | D163: 2165.48 | E163: 115311.81
A164: 774130 | B164: Информационная розетка - Valena - RJ45 - категория 5e - UTP - 1 выход - с захватами - слоновая кость | C164: 5 | D164: 2091.87 | E164: 3486.45
A165: 770492 | B165: Рамка - Valena - 2 поста - горизонтальный монтаж - белый/серебряный штрих | C165: 1 | D165: 515.58 | E165: 515.58
A166: 774316 | B166: Силовая розетка - Valena - 2К - на винтах - 10/16 А - 230/250 В~ - слоновая кость | C166: 20 | D166: 418.82 | E166: 4188.2
A167: 774329 | B167: ТВ розетка - Valena - звезда - 1.5 дБ - 2400 МГц - слоновая кость | C167: 2 | D167: 1076.68 | E167: 1076.68
A168: 774334 | B168: Розетка TV-FM - Valena - проходная - 14 дБ - 862 МГц - слоновая кость | C168: 8 | D168: 1142.81 | E168: 9142.48
A169: 774331 | B169: ТВ розетка - Valena - проходная - 14 дБ - 2400 МГц - слоновая кость | C169: 10 | D169: 919.17 | E169: 9191.7
A170: 774422 | B170: Силовая розетка - Valena - 2К+3 - с откидной крышкой - на винтах - 10/16 А - 230/250 В~ - белый | C170: 6 | D170: 351.77 | E170: 2110.62
A171: 774438 | B171: Телефонная розетка - Valena - RJ11 - 4 контакта - 1 выход - White | C171: 17 | D171: 900.76 | E171: 7656.46
A172: 774405 | B172: Выключатель двухклавишный - Valena - 10 A - 250 В~ - White | C172: 9 | D172: 707.8 | E172: 3185.1
A173: 774445 | B173: Выключатель двухклавишный с индикацией - Valena - 10 A - 250 В~ - White | C173: 8 | D173: 898.29 | E173: 7186.32
A174: 774441 | B174: Телефонная розетка - Valena - RJ45 - ISDN / Интернет - 8 контактов - 1 выход - White | C174: 1 | D174: 1122.94 | E174: 1122.94
A175: 774304 | B175: Переключатель с механической блокировкой - Valena - 10 А - 250 В~ - слоновая кость | C175: 6 | D175: 2058.16 | E175: 6174.48
A176: 774174 | B176: Кнопочный светорегулятор - Valena - 40-600 Вт/40-600 ВА - слоновая кость | C176: 1 | D176: 3703.12 | E176: 3703.12
A177: 774319 | B177: Выключатель без фиксации перекидной - Valena - со шнуром - 10 A - 250 В~ - слоновая кость | C177: 1 | D177: 692.09 | E177: 692.09
A178: 774309 | B178: ValenaПерекл.3-х поз.(сл.к) | C178: 1 | D178: 1577.85 | E178: 1577.85
A179: 774360 | B179: Valena Светорег.50-500Вт гал. | C179: 2 | D179: 2269.5 | E179: 4539
A180: 774460 | B180: Valena Светор.500Вт гал.бел. | C180: 2 | D180: 2291.11 | E180: 4582.22
A181: 774393 | B181: Розетка 2х2К+З францйзкий стандарт | C181: 10 | D181: 503.93 | E181: 5039.3
A182: 774400 | B182: Розеточный блок - Valena - немецкий стандарт - 2х2К+3 - на винтах - укомплектованный - белый | C182: 3 | D182: 564.05 | E182: 1692.15
A183: 774370 | B183: Розеточный блок - Valena - немецкий стандарт - 2х2К+3 - укомплектованный - слоновая кость | C183: 3 | D183: 564.05 | E183: 1692.15
A184: 774402 | B184: Выключатель двухполюсный - Valena - 10 A - 250 В~ - White | C184: 5 | D184: 601.08 | E184: 3005.4
A185: 774394 | B185: Силовая розетка - Valena - 2К+3 - с механической системой выталкивания вилки - на винтах - 10/16 А - White | C185: 3 | D185: 926.73 | E185: 2780.19
A186: 774353 | B186: Рамка - Valena - 3 поста - горизонтальный монтаж - слоновая кость | C186: 16 | D186: 454.92 | E186: 3639.36
A187: 774295 | B187: Valena Рамка 5п.гор.хром | C187: 2 | D187: 557.1 | E187: 1114.2
A188: 774285 | B188: Valena Рамка 5п.гор.золото | C188: 2 | D188: 557.1 | E188: 1114.2
A189: 774275 | B189: Valena Рамка 5п.гор.синий | C189: 4 | D189: 557.1 | E189: 2228.4
A190: 774265 | B190: Valena Рамка 5п.гор.янтарь | C190: 3 | D190: 557.1 | E190: 1671.3
A191: 774262 | B191: Valena Рамка 2п.гор.янтарь | C191: 35 | D191: 273.36 | E191: 4783.8
A192: 774261 | B192: Valena Рамка 1п.гор.янтарь | C192: 25 | D192: 165.28 | E192: 2066
A193: 774271 | B193: Valena Рамка 1п.гор.синий | C193: 21 | D193: 165.28 | E193: 1735.44
A194: 774284 | B194: Valena Рамка 4п.гор.золото | C194: 6 | D194: 339.6 | E194: 2037.6
A195: 774454 | B195: Рамка - Valena - 4 поста - горизонтальный монтаж - белый | C195: 2 | D195: 423.55 | E195: 847.1
A196: 774428 | B196: Выключатель двойной с подсветкой / переключатель на 2 напр. двухклавишный с подсветкой - Valena - 10 A - 250 В~ - White | C196: 41 | D196: 1331.68 | E196: 27299.44
A197: 774410 | B197: Выключатель с подсветкой - Valena - 10 A - 250 В~ - White | C197: 43 | D197: 1624.11 | E197: 23278.91
A198: 774401 | B198: Выключатель одноклавишный - Valena - 10 A - 250 В~ - White | C198: 4 | D198: 653.43 | E198: 871.24
A199: 774307 | B199: Переключатель промежуточный - Valena - 10 A - 250 В~ - слоновая кость | C199: 11 | D199: 1158.4 | E199: 6371.2
A200: 774305 | B200: Выключатель двухклавишный - Valena - 10 A - 250 В~ - слоновая кость | C200: 1 | D200: 353.9 | E200: 353.9
... 328 more rows
